{"text_format":"1","workbook":"xlsx","n_sheets":3,"sheets":["PLEASE READ-Instructions","Tracking Worksheet","Vaccination Summary"],"not_rendered":{"charts":0,"images":0,"macros":0,"external_links":2,"defined_names":1,"comments":0,"pivot_tables":0},"unopened":[],"bounds":{"document_bytes":16777216,"sheet_cells":100000,"rows_first":2000,"rows_last":500,"rows_between":2000,"halvings":0,"cell_chars":16384,"cell_head_chars":4096},"cells_cut":0,"cells_raw":0,"read":"whole","date_system":"1900"}

{"sheet":"PLEASE READ-Instructions","index":0,"n_rows":33,"n_cols":5,"rows_kept":33,"cut":false,"hidden":false,"merged":[[1,9,1,10],[6,1,6,10],[4,1,4,10],[31,1,31,10],[8,1,8,10],[10,2,10,10],[11,2,11,10],[12,2,12,10],[3,1,3,10],[2,1,2,10],[23,4,23,10],[24,4,24,10],[16,4,16,10],[17,4,17,10],[18,4,18,10],[32,1,32,10],[5,2,5,10],[7,2,7,10],[9,2,9,10],[25,4,25,10],[19,4,19,10],[20,4,20,10],[13,4,13,10],[14,4,14,10],[15,4,15,10],[21,4,21,10],[22,4,22,10]]}
[]
[]
[null,"Instructions  (MDPH Version 1.0, June 2021)"]
[]
[null,"Purpose of this Tracking Worksheet:"]
[null,null,"Please use this worksheet to help log and track the COVID-19 vaccination status for HCP. When you enter COVID vaccination data for each employee in the 'Tracking Worksheet' tab, and select a reporting week, the data needed for reporting into NHSN will be automatically calculated in the 'Vaccination Summary' tab. "]
[null,"Summary Instructions:"]
[null,null,"Any HCP recently hired or working at your facility should be added to the 'Tracking Worksheet' tab.  When employees are vaccinated, enter the vaccination information (type and date) into the 'Tracking Worksheet'.  If an employee has a medical contraindication, declines vaccine, or has an unknown vaccination status, this information should be documented appropriately in the worksheet.\n\nNOTE: HCP who no longer work in the facility do not need to be deleted off the 'Tracking Worksheet' but should be indicated on the worksheet by entering the Employee End Date. When a reporting week is selected, only those who were current HCPs during the reporting period will be included in the 'Vaccination Summary'.   \n\nIf data entries are made in error, they can be removed with the \"delete\" key; Using the \"Backspace\" key may not delete the entry and may return a warning."]
[null,"Detailed Instructions:"]
[null,null,"NOTE: In order for this spreadsheet to operate at 100%, please ENABLE MACROS and save as \"Excel Macro Enabled Workbook\""]
[null,null,"A. The red Asterix (*) is required for reporting to NHSN. Note: The other boxes are for optional NHSN reporting "]
[null,null,"B. Enter data in rows (from left to right) when entering vaccine data for each HCP"]
[null,null,"C. Steps for Entering HCP Vaccination Data on the TrackingWorksheet tab:"]
[null,null,1,null,"Enter the unique (Facility ID#) for the reporting facility"]
[null,null,2,null,"Select the (*First Day of the Reporting Week) that you plan to generate the report (Note: the first day of the reporting week is always a Monday)"]
[null,null,3,null,"Enter the (*Employee start Date) to the facility. A date must be entered. If unknown choose a date before the first reporting week (e.g., 12/1/2020)"]
[null,null,4,null,"Enter the (*Employee end Date) from the facility (when applicable)"]
[null,null,5,null,"Enter employee's first name, last name, DOB (date of birth) or other identifier"]
[null,null,6,null,"Select (*Dose 1 Vaccine Name) from the drop-down box "]
[null,null,7,null,"Enter date the employee was vaccinated with dose 1  (*Vaccinated with Dose 1)"]
[null,null,8,null,"The vaccine name for the second dose will automatically populate based on the vaccine name selected for the first dose (Dose 2 Vaccine Name)"]
[null,null,9,null,"Enter date the resident was vaccinated with Dose 2 (*Vaccinated with Dose 2)"]
[null,null,10,null,"Select 'YES' if the employee (*Completed COVID vaccine series with unspecified manufacturer), do not enter vaccine doses in the prior sections"]
[null,null,11,null,"Select 'YES' (*Medical contraindication), if applicable "]
[null,null,12,null,"Select 'YES' (*Declined vaccine), if applicable"]
[null,null,13,null,"Select 'YES' (*Unknown Vaccine Status), if applicable.  This would include residents pending vaccination. "]
[null,null,14,null,"Select YES/NO if the employee was vaccinated at another location (optional)"]
[null,null,15,null,"Select (*HCP Category ) from the drop-down box "]
[null,null,16,null,"Enter any additional comments (optional)"]
[null,null,17,null,"Click on the \"Reporting Summary\" tab to see data to be entered into NHSN for the reporting week."]
[]
[null,"IMPORTANT **DO NOT send this form to NHSN, this form is ONLY to be used by your facility for COVID vaccine data collection and record keeping purposes**"]
[null,"Please refer to the TOI (Table of Instructions) for further details on NHSN reporting at https://www.cdc.gov/nhsn/hps/weekly-covid-vac/index.html"]

{"sheet":"Tracking Worksheet","index":1,"n_rows":1007,"n_cols":26,"rows_kept":1007,"cut":false,"hidden":false,"merged":[[4,1,4,5],[4,6,4,8],[1,1,1,5],[1,6,1,8],[2,1,2,5],[2,6,2,8],[3,1,3,5]]}
[]
[null,"Weekly COVID-19 Vaccination Cumulative Summary ",null,null,null,null,"Facility ID#:",null,null,null,"   Enter your Facility ID Here"]
[null,"for HCP of Long-Term Care Facilities",null,null,null,null,"Vaccination type:",null,null,"COVID_19"]
[null,"TRACKING WORKSHEET",null,null,null,null,null,null,"*First day of Reporting Week (Monday):","2021-05-24","   Select the Monday of the start of the week you are reporting"]
[null,null,null,null,null,null,"Last day of the reporting week (Sunday):",null,null,{"$f":"IF(ISBLANK(J4),\"-\",J4+6)","v":"2021-05-30"},"   Last day of the reporting week automatically populated"]
[null,"* Required fields"]
[null,null,null,null,null,null,null,null,null,null,null,null,null,null,null,null,null,null,null,"Total","Ancillary","Nurse","Aid","Therapist","Physician","Other"]
[null,"*Employee Start Date","*Employee End Date\n(if applicable)","Employee \nLast Name","Employee \nFirst Name ","Unique Employee Identifier \n(Enter DOB, License #, etc.)","*Dose 1 \nVaccine Name \n(choose from drop-down)","*Dose 1 \nVaccine Date","Dose 2\nVaccine Name \n(automatically populated)","*Dose 2\nVaccine Date","Completed COVID vaccine series with unspecified manufacturer?","*Medical contraindication to COVID Vaccine?","*Declined COVID Vaccine?","*Unknown Vaccine Status (including those pending vaccination)?","Vaccinated at Another Location?\nSelect: Yes/No","*HCP Category \n(choose from drop-down)","Additional Comments",null,"1. Residents",{"$f":"COUNTIFS($B$9:$B$1007, \"<=\"&J5,$C$9:$C$1007,\"\")+COUNTIFS($B$9:$B$1007, \"<=\"&J5,$C$9:$C$1007,\">=\"&J4)","v":0},{"$f":"COUNTIFS($B$9:$B$1007, \"<=\"&J5,$C$9:$C$1007,\"\",$P$9:$P$1007,\"Ancillary Services\")+COUNTIFS($B$9:$B$1007, \"<=\"&J5,$C$9:$C$1007,\">=\"&J4,$P$9:$P$1007,\"Ancillary Services\")","v":0},{"$f":"COUNTIFS($B$9:$B$1007, \"<=\"&J5,$C$9:$C$1007,\"\",$P$9:$P$1007,\"Nurse\")+COUNTIFS($B$9:$B$1007, \"<=\"&J5,$C$9:$C$1007,\">=\"&J4,$P$9:$P$1007,\"Nurse\")","v":0},{"$f":"COUNTIFS($B$9:$B$1007, \"<=\"&J5,$C$9:$C$1007,\"\",$P$9:$P$1007,\"Aide/Assistant/Technician\")+COUNTIFS($B$9:$B$1007, \"<=\"&J5,$C$9:$C$1007,\">=\"&J4,$P$9:$P$1007,\"Aide/Assistant/Technician\")","v":0},{"$f":"COUNTIFS($B$9:$B$1007, \"<=\"&J5,$C$9:$C$1007,\"\",$P$9:$P$1007,\"Therapist\")+COUNTIFS($B$9:$B$1007, \"<=\"&J5,$C$9:$C$1007,\">=\"&J4,$P$9:$P$1007,\"Therapist\")","v":0},{"$f":"COUNTIFS($B$9:$B$1007, \"<=\"&J5,$C$9:$C$1007,\"\",$P$9:$P$1007,\"Physician/Licensed Independent Practitioner\")+COUNTIFS($B$9:$B$1007, \"<=\"&J5,$C$9:$C$1007,\">=\"&J4,$P$9:$P$1007,\"Physician/Licensed Independent Practitioner\")","v":0},{"$f":"COUNTIFS($B$9:$B$1007, \"<=\"&J5,$C$9:$C$1007,\"\",$P$9:$P$1007,\"Other\")+COUNTIFS($B$9:$B$1007, \"<=\"&J5,$C$9:$C$1007,\">=\"&J4,$P$9:$P$1007,\"Other\")","v":0}]
[null,null,null,null,null,null,null,null,{"$f":"IF(G9=\"Pfizer-BioNTech\",\"Pfizer-BioNTech\",IF(G9=\"Moderna\",\"Moderna\", IF(G9=\"Janssen\",\"\",\" \")))","v":" "},null,null,null,null,null,null,null,null,null,"2.1 1 Pfizer",{"$f":"COUNTIFS($B$9:$B$1007, \"<=\"&J5,$C$9:$C$1007,\"\",$G$9:$G$1007,\"Pfizer-BioNTech\",$J$9:$J$1007,\"\")+COUNTIFS($B$9:$B$1007, \"<=\"&J5,$C$9:$C$1007,\">=\"&J4,$G$9:$G$1007,\"Pfizer-BioNTech\",$J$9:$J$1007,\"\")","v":0},{"$f":"COUNTIFS($B$9:$B$1007, \"<=\"&J5,$C$9:$C$1007,\"\",$G$9:$G$1007,\"Pfizer-BioNTech\",$J$9:$J$1007,\"\",$P$9:$P$1007,\"Ancillary Services\")+COUNTIFS($B$9:$B$1007, \"<=\"&J5,$C$9:$C$1007,\">=\"&J4,$G$9:$G$1007,\"Pfizer-BioNTech\",$J$9:$J$1007,\"\",$P$9:$P$1007,\"Ancillary Services\")","v":0},{"$f":"COUNTIFS($B$9:$B$1007, \"<=\"&J5,$C$9:$C$1007,\"\",$G$9:$G$1007,\"Pfizer-BioNTech\",$J$9:$J$1007,\"\",$P$9:$P$1007,\"Nurse\")+COUNTIFS($B$9:$B$1007, \"<=\"&J5,$C$9:$C$1007,\">=\"&J4,$G$9:$G$1007,\"Pfizer-BioNTech\",$J$9:$J$1007,\"\",$P$9:$P$1007,\"Nurse\")","v":0},{"$f":"COUNTIFS($B$9:$B$1007, \"<=\"&J5,$C$9:$C$1007,\"\",$G$9:$G$1007,\"Pfizer-BioNTech\",$J$9:$J$1007,\"\",$P$9:$P$1007,\"Aide/Assistant/Technician\")+COUNTIFS($B$9:$B$1007, \"<=\"&J5,$C$9:$C$1007,\">=\"&J4,$G$9:$G$1007,\"Pfizer-BioNTech\",$J$9:$J$1007,\"\",$P$9:$P$1007,\"Aide/Assistant/Technician\")","v":0},{"$f":"COUNTIFS($B$9:$B$1007, \"<=\"&J5,$C$9:$C$1007,\"\",$G$9:$G$1007,\"Pfizer-BioNTech\",$J$9:$J$1007,\"\",$P$9:$P$1007,\"Therapist\")+COUNTIFS($B$9:$B$1007, \"<=\"&J5,$C$9:$C$1007,\">=\"&J4,$G$9:$G$1007,\"Pfizer-BioNTech\",$J$9:$J$1007,\"\",$P$9:$P$1007,\"Therapist\")","v":0},{"$f":"COUNTIFS($B$9:$B$1007, \"<=\"&J5,$C$9:$C$1007,\"\",$G$9:$G$1007,\"Pfizer-BioNTech\",$J$9:$J$1007,\"\",$P$9:$P$1007,\"Physician/Licensed Independent Practitioner\")+COUNTIFS($B$9:$B$1007, \"<=\"&J5,$C$9:$C$1007,\">=\"&J4,$G$9:$G$1007,\"Pfizer-BioNTech\",$J$9:$J$1007,\"\",$P$9:$P$1007,\"Physician/Licensed Independent Practitioner\")","v":0},{"$f":"COUNTIFS($B$9:$B$1007, \"<=\"&J5,$C$9:$C$1007,\"\",$G$9:$G$1007,\"Pfizer-BioNTech\",$J$9:$J$1007,\"\",$P$9:$P$1007,\"Other\")+COUNTIFS($B$9:$B$1007, \"<=\"&J5,$C$9:$C$1007,\">=\"&J4,$G$9:$G$1007,\"Pfizer-BioNTech\",$J$9:$J$1007,\"\",$P$9:$P$1007,\"Other\")","v":0}]
[null,null,null,null,null,null,null,null,{"$f":"IF(G10=\"Pfizer-BioNTech\",\"Pfizer-BioNTech\",IF(G10=\"Moderna\",\"Moderna\", IF(G10=\"Janssen\",\"\",\" \")))","v":" "},null,null,null,null,null,null,null,null,null,"2.2 2 Pfizer",{"$f":"COUNTIFS($B$9:$B$1007, \"<=\"&J5,$C$9:$C$1007,\"\",$I$9:$I$1007,\"Pfizer-BioNTech\",$J$9:$J$1007,\"<>\")+COUNTIFS($B$9:$B$1007, \"<=\"&J5,$C$9:$C$1007,\">=\"&J4,$I$9:$I$1007,\"Pfizer-BioNTech\",$J$9:$J$1007,\"<>\")","v":0},{"$f":"COUNTIFS($B$9:$B$1007, \"<=\"&J5,$C$9:$C$1007,\"\",$I$9:$I$1007,\"Pfizer-BioNTech\",$J$9:$J$1007,\"<>\",$P$9:$P$1007,\"Ancillary Services\")+COUNTIFS($B$9:$B$1007, \"<=\"&J5,$C$9:$C$1007,\">=\"&J4,$I$9:$I$1007,\"Pfizer-BioNTech\",$J$9:$J$1007,\"<>\",$P$9:$P$1007,\"Ancillary Services\")","v":0},{"$f":"COUNTIFS($B$9:$B$1007, \"<=\"&J5,$C$9:$C$1007,\"\",$I$9:$I$1007,\"Pfizer-BioNTech\",$J$9:$J$1007,\"<>\",$P$9:$P$1007,\"Nurse\")+COUNTIFS($B$9:$B$1007, \"<=\"&J5,$C$9:$C$1007,\">=\"&J4,$I$9:$I$1007,\"Pfizer-BioNTech\",$J$9:$J$1007,\"<>\",$P$9:$P$1007,\"Nurse\")","v":0},{"$f":"COUNTIFS($B$9:$B$1007, \"<=\"&J5,$C$9:$C$1007,\"\",$I$9:$I$1007,\"Pfizer-BioNTech\",$J$9:$J$1007,\"<>\",$P$9:$P$1007,\"Aide/Assistant/Technician\")+COUNTIFS($B$9:$B$1007, \"<=\"&J5,$C$9:$C$1007,\">=\"&J4,$I$9:$I$1007,\"Pfizer-BioNTech\",$J$9:$J$1007,\"<>\",$P$9:$P$1007,\"Aide/Assistant/Technician\")","v":0},{"$f":"COUNTIFS($B$9:$B$1007, \"<=\"&J5,$C$9:$C$1007,\"\",$I$9:$I$1007,\"Pfizer-BioNTech\",$J$9:$J$1007,\"<>\",$P$9:$P$1007,\"Therapist\")+COUNTIFS($B$9:$B$1007, \"<=\"&J5,$C$9:$C$1007,\">=\"&J4,$I$9:$I$1007,\"Pfizer-BioNTech\",$J$9:$J$1007,\"<>\",$P$9:$P$1007,\"Therapist\")","v":0},{"$f":"COUNTIFS($B$9:$B$1007, \"<=\"&J5,$C$9:$C$1007,\"\",$I$9:$I$1007,\"Pfizer-BioNTech\",$J$9:$J$1007,\"<>\",$P$9:$P$1007,\"Physician/Licensed Independent Practitioner\")+COUNTIFS($B$9:$B$1007, \"<=\"&J5,$C$9:$C$1007,\">=\"&J4,$I$9:$I$1007,\"Pfizer-BioNTech\",$J$9:$J$1007,\"<>\",$P$9:$P$1007,\"Physician/Licensed Independent Practitioner\")","v":0},{"$f":"COUNTIFS($B$9:$B$1007, \"<=\"&J5,$C$9:$C$1007,\"\",$I$9:$I$1007,\"Pfizer-BioNTech\",$J$9:$J$1007,\"<>\",$P$9:$P$1007,\"Other\")+COUNTIFS($B$9:$B$1007, \"<=\"&J5,$C$9:$C$1007,\">=\"&J4,$I$9:$I$1007,\"Pfizer-BioNTech\",$J$9:$J$1007,\"<>\",$P$9:$P$1007,\"Other\")","v":0}]
[null,null,null,null,null,null,null,null," ",null,null,null,null,null,null,null,null,null,"2.3 1 Moderna",{"$f":"COUNTIFS($B$9:$B$1007, \"<=\"&J5,$C$9:$C$1007,\"\",$G$9:$G$1007,\"Moderna\",$J$9:$J$1007,\"\")+COUNTIFS($B$9:$B$1007, \"<=\"&J5,$C$9:$C$1007,\">=\"&J4,$G$9:$G$1007,\"Moderna\",$J$9:$J$1007,\"\")","v":0},{"$f":"COUNTIFS($B$9:$B$1007, \"<=\"&J5,$C$9:$C$1007,\"\",$G$9:$G$1007,\"Moderna\",$J$9:$J$1007,\"\",$P$9:$P$1007,\"Ancillary Services\")+COUNTIFS($B$9:$B$1007, \"<=\"&J5,$C$9:$C$1007,\">=\"&J4,$G$9:$G$1007,\"Moderna\",$J$9:$J$1007,\"\",$P$9:$P$1007,\"Ancillary Services\")","v":0},{"$f":"COUNTIFS($B$9:$B$1007, \"<=\"&J5,$C$9:$C$1007,\"\",$G$9:$G$1007,\"Moderna\",$J$9:$J$1007,\"\",$P$9:$P$1007,\"Nurse\")+COUNTIFS($B$9:$B$1007, \"<=\"&J5,$C$9:$C$1007,\">=\"&J4,$G$9:$G$1007,\"Moderna\",$J$9:$J$1007,\"\",$P$9:$P$1007,\"Nurse\")","v":0},{"$f":"COUNTIFS($B$9:$B$1007, \"<=\"&J5,$C$9:$C$1007,\"\",$G$9:$G$1007,\"Moderna\",$J$9:$J$1007,\"\",$P$9:$P$1007,\"Aide/Assistant/Technician\")+COUNTIFS($B$9:$B$1007, \"<=\"&J5,$C$9:$C$1007,\">=\"&J4,$G$9:$G$1007,\"Moderna\",$J$9:$J$1007,\"\",$P$9:$P$1007,\"Aide/Assistant/Technician\")","v":0},{"$f":"COUNTIFS($B$9:$B$1007, \"<=\"&J5,$C$9:$C$1007,\"\",$G$9:$G$1007,\"Moderna\",$J$9:$J$1007,\"\",$P$9:$P$1007,\"Therapist\")+COUNTIFS($B$9:$B$1007, \"<=\"&J5,$C$9:$C$1007,\">=\"&J4,$G$9:$G$1007,\"Moderna\",$J$9:$J$1007,\"\",$P$9:$P$1007,\"Therapist\")","v":0},{"$f":"COUNTIFS($B$9:$B$1007, \"<=\"&J5,$C$9:$C$1007,\"\",$G$9:$G$1007,\"Moderna\",$J$9:$J$1007,\"\",$P$9:$P$1007,\"Physician/Licensed Independent Practitioner\")+COUNTIFS($B$9:$B$1007, \"<=\"&J5,$C$9:$C$1007,\">=\"&J4,$G$9:$G$1007,\"Moderna\",$J$9:$J$1007,\"\",$P$9:$P$1007,\"Physician/Licensed Independent Practitioner\")","v":0},{"$f":"COUNTIFS($B$9:$B$1007, \"<=\"&J5,$C$9:$C$1007,\"\",$G$9:$G$1007,\"Moderna\",$J$9:$J$1007,\"\",$P$9:$P$1007,\"Other\")+COUNTIFS($B$9:$B$1007, \"<=\"&J5,$C$9:$C$1007,\">=\"&J4,$G$9:$G$1007,\"Moderna\",$J$9:$J$1007,\"\",$P$9:$P$1007,\"Other\")","v":0}]
[null,null,null,null,null,null,null,null," ",null,null,null,null,null,null,null,null,null,"2.4 2 Moderna",{"$f":"COUNTIFS($B$9:$B$1007, \"<=\"&J5,$C$9:$C$1007,\"\",$I$9:$I$1007,\"Moderna\",$J$9:$J$1007,\"<>\")+COUNTIFS($B$9:$B$1007, \"<=\"&J5,$C$9:$C$1007,\">=\"&J4,$I$9:$I$1007,\"Moderna\",$J$9:$J$1007,\"<>\")","v":0},{"$f":"COUNTIFS($B$9:$B$1007, \"<=\"&J5,$C$9:$C$1007,\"\",$I$9:$I$1007,\"Moderna\",$J$9:$J$1007,\"<>\",$P$9:$P$1007,\"Ancillary Services\")+COUNTIFS($B$9:$B$1007, \"<=\"&J5,$C$9:$C$1007,\">=\"&J4,$I$9:$I$1007,\"Moderna\",$J$9:$J$1007,\"<>\",$P$9:$P$1007,\"Ancillary Services\")","v":0},{"$f":"COUNTIFS($B$9:$B$1007, \"<=\"&J5,$C$9:$C$1007,\"\",$I$9:$I$1007,\"Moderna\",$J$9:$J$1007,\"<>\",$P$9:$P$1007,\"Nurse\")+COUNTIFS($B$9:$B$1007, \"<=\"&J5,$C$9:$C$1007,\">=\"&J4,$I$9:$I$1007,\"Moderna\",$J$9:$J$1007,\"<>\",$P$9:$P$1007,\"Nurse\")","v":0},{"$f":"COUNTIFS($B$9:$B$1007, \"<=\"&J5,$C$9:$C$1007,\"\",$I$9:$I$1007,\"Moderna\",$J$9:$J$1007,\"<>\",$P$9:$P$1007,\"Aide/Assistant/Technician\")+COUNTIFS($B$9:$B$1007, \"<=\"&J5,$C$9:$C$1007,\">=\"&J4,$I$9:$I$1007,\"Moderna\",$J$9:$J$1007,\"<>\",$P$9:$P$1007,\"Aide/Assistant/Technician\")","v":0},{"$f":"COUNTIFS($B$9:$B$1007, \"<=\"&J5,$C$9:$C$1007,\"\",$I$9:$I$1007,\"Moderna\",$J$9:$J$1007,\"<>\",$P$9:$P$1007,\"Therapist\")+COUNTIFS($B$9:$B$1007, \"<=\"&J5,$C$9:$C$1007,\">=\"&J4,$I$9:$I$1007,\"Moderna\",$J$9:$J$1007,\"<>\",$P$9:$P$1007,\"Therapist\")","v":0},{"$f":"COUNTIFS($B$9:$B$1007, \"<=\"&J5,$C$9:$C$1007,\"\",$I$9:$I$1007,\"Moderna\",$J$9:$J$1007,\"<>\",$P$9:$P$1007,\"Physician/Licensed Independent Practitioner\")+COUNTIFS($B$9:$B$1007, \"<=\"&J5,$C$9:$C$1007,\">=\"&J4,$I$9:$I$1007,\"Moderna\",$J$9:$J$1007,\"<>\",$P$9:$P$1007,\"Physician/Licensed Independent Practitioner\")","v":0},{"$f":"COUNTIFS($B$9:$B$1007, \"<=\"&J5,$C$9:$C$1007,\"\",$I$9:$I$1007,\"Moderna\",$J$9:$J$1007,\"<>\",$P$9:$P$1007,\"Other\")+COUNTIFS($B$9:$B$1007, \"<=\"&J5,$C$9:$C$1007,\">=\"&J4,$I$9:$I$1007,\"Moderna\",$J$9:$J$1007,\"<>\",$P$9:$P$1007,\"Other\")","v":0}]
[null,null,null,null,null,null,null,null," ",null,null,null,null,null,null,null,null,null,"2.5 Janssen",{"$f":"COUNTIFS($B$9:$B$1007, \"<=\"&J5,$C$9:$C$1007,\"\",$G$9:$G$1007,\"Janssen\")+COUNTIFS($B$9:$B$1007, \"<=\"&J5,$C$9:$C$1007,\">=\"&J4,$G$9:$G$1007,\"Janssen\")","v":0},{"$f":"COUNTIFS($B$9:$B$1007, \"<=\"&J5,$C$9:$C$1007,\"\",$G$9:$G$1007,\"Janssen\",$P$9:$P$1007,\"Ancillary Services\")+COUNTIFS($B$9:$B$1007, \"<=\"&J5,$C$9:$C$1007,\">=\"&J4,$G$9:$G$1007,\"Janssen\",$P$9:$P$1007,\"Ancillary Services\")","v":0},{"$f":"COUNTIFS($B$9:$B$1007, \"<=\"&J5,$C$9:$C$1007,\"\",$G$9:$G$1007,\"Janssen\",$P$9:$P$1007,\"Nurse\")+COUNTIFS($B$9:$B$1007, \"<=\"&J5,$C$9:$C$1007,\">=\"&J4,$G$9:$G$1007,\"Janssen\",$P$9:$P$1007,\"Nurse\")","v":0},{"$f":"COUNTIFS($B$9:$B$1007, \"<=\"&J5,$C$9:$C$1007,\"\",$G$9:$G$1007,\"Janssen\",$P$9:$P$1007,\"Aide/Assistant/Technician\")+COUNTIFS($B$9:$B$1007, \"<=\"&J5,$C$9:$C$1007,\">=\"&J4,$G$9:$G$1007,\"Janssen\",$P$9:$P$1007,\"Aide/Assistant/Technician\")","v":0},{"$f":"COUNTIFS($B$9:$B$1007, \"<=\"&J5,$C$9:$C$1007,\"\",$G$9:$G$1007,\"Janssen\",$P$9:$P$1007,\"Therapist\")+COUNTIFS($B$9:$B$1007, \"<=\"&J5,$C$9:$C$1007,\">=\"&J4,$G$9:$G$1007,\"Janssen\",$P$9:$P$1007,\"Therapist\")","v":0},{"$f":"COUNTIFS($B$9:$B$1007, \"<=\"&J5,$C$9:$C$1007,\"\",$G$9:$G$1007,\"Janssen\",$P$9:$P$1007,\"Physician/Licensed Independent Practitioner\")+COUNTIFS($B$9:$B$1007, \"<=\"&J5,$C$9:$C$1007,\">=\"&J4,$G$9:$G$1007,\"Janssen\",$P$9:$P$1007,\"Physician/Licensed Independent Practitioner\")","v":0},{"$f":"COUNTIFS($B$9:$B$1007, \"<=\"&J5,$C$9:$C$1007,\"\",$G$9:$G$1007,\"Janssen\",$P$9:$P$1007,\"Other\")+COUNTIFS($B$9:$B$1007, \"<=\"&J5,$C$9:$C$1007,\">=\"&J4,$G$9:$G$1007,\"Janssen\",$P$9:$P$1007,\"Other\")","v":0}]
[null,null,null,null,null,null,null,null," ",null,null,null,null,null,null,null,null,null,"2.99 Unspecified",{"$f":"COUNTIFS($B$9:$B$1007, \"<=\"&J5,$C$9:$C$1007,\"\",$K$9:$K$1007,\"YES\")+COUNTIFS($B$9:$B$1007, \"<=\"&J5,$C$9:$C$1007,\">=\"&J4,$K$9:$K$1007,\"YES\")","v":0},{"$f":"COUNTIFS($B$9:$B$1007, \"<=\"&J5,$C$9:$C$1007,\"\",$K$9:$K$1007,\"YES\",$P$9:$P$1007,\"Ancillary Services\")+COUNTIFS($B$9:$B$1007, \"<=\"&J5,$C$9:$C$1007,\">=\"&J4,$K$9:$K$1007,\"YES\",$P$9:$P$1007,\"Ancillary Services\")","v":0},{"$f":"COUNTIFS($B$9:$B$1007, \"<=\"&J5,$C$9:$C$1007,\"\",$K$9:$K$1007,\"YES\",$P$9:$P$1007,\"Nurse\")+COUNTIFS($B$9:$B$1007, \"<=\"&J5,$C$9:$C$1007,\">=\"&J4,$K$9:$K$1007,\"YES\",$P$9:$P$1007,\"Nurse\")","v":0},{"$f":"COUNTIFS($B$9:$B$1007, \"<=\"&J5,$C$9:$C$1007,\"\",$K$9:$K$1007,\"YES\",$P$9:$P$1007,\"Aide/Assistant/Technician\")+COUNTIFS($B$9:$B$1007, \"<=\"&J5,$C$9:$C$1007,\">=\"&J4,$K$9:$K$1007,\"YES\",$P$9:$P$1007,\"Aide/Assistant/Technician\")","v":0},{"$f":"COUNTIFS($B$9:$B$1007, \"<=\"&J5,$C$9:$C$1007,\"\",$K$9:$K$1007,\"YES\",$P$9:$P$1007,\"Therapist\")+COUNTIFS($B$9:$B$1007, \"<=\"&J5,$C$9:$C$1007,\">=\"&J4,$K$9:$K$1007,\"YES\",$P$9:$P$1007,\"Therapist\")","v":0},{"$f":"COUNTIFS($B$9:$B$1007, \"<=\"&J5,$C$9:$C$1007,\"\",$K$9:$K$1007,\"YES\",$P$9:$P$1007,\"Physician/Licensed Independent Practitioner\")+COUNTIFS($B$9:$B$1007, \"<=\"&J5,$C$9:$C$1007,\">=\"&J4,$K$9:$K$1007,\"YES\",$P$9:$P$1007,\"Physician/Licensed Independent Practitioner\")","v":0},{"$f":"COUNTIFS($B$9:$B$1007, \"<=\"&J5,$C$9:$C$1007,\"\",$K$9:$K$1007,\"YES\",$P$9:$P$1007,\"Other\")+COUNTIFS($B$9:$B$1007, \"<=\"&J5,$C$9:$C$1007,\">=\"&J4,$K$9:$K$1007,\"YES\",$P$9:$P$1007,\"Other\")","v":0}]
[null,null,null,null,null,null,null,null," "]
[null,null,null,null,null,null,null,null," ",null,null,null,null,null,null,null,null,null,"3.1 Medical",{"$f":"COUNTIFS($B$9:$B$1007, \"<=\"&J5,$C$9:$C$1007,\"\",$L$9:$L$1007,\"YES\")+COUNTIFS($B$9:$B$1007, \"<=\"&J5,$C$9:$C$1007,\">=\"&J4,$L$9:$L$1007,\"YES\")","v":0},{"$f":"COUNTIFS($B$9:$B$1007, \"<=\"&J5,$C$9:$C$1007,\"\",$L$9:$L$1007,\"YES\",$P$9:$P$1007,\"Ancillary Services\")+COUNTIFS($B$9:$B$1007, \"<=\"&J6,$C$9:$C$1007,\">=\"&J4,$L$9:$L$1007,\"YES\",$P$9:$P$1007,\"Ancillary Services\")","v":0},{"$f":"COUNTIFS($B$9:$B$1007, \"<=\"&J5,$C$9:$C$1007,\"\",$L$9:$L$1007,\"YES\",$P$9:$P$1007,\"Nurse\")+COUNTIFS($B$9:$B$1007, \"<=\"&J5,$C$9:$C$1007,\">=\"&J4,$L$9:$L$1007,\"YES\",$P$9:$P$1007,\"Nurse\")","v":0},{"$f":"COUNTIFS($B$9:$B$1007, \"<=\"&J5,$C$9:$C$1007,\"\",$L$9:$L$1007,\"YES\",$P$9:$P$1007,\"Aide/Assistant/Technician\")+COUNTIFS($B$9:$B$1007, \"<=\"&J5,$C$9:$C$1007,\">=\"&J4,$L$9:$L$1007,\"YES\",$P$9:$P$1007,\"Aide/Assistant/Technician\")","v":0},{"$f":"COUNTIFS($B$9:$B$1007, \"<=\"&J5,$C$9:$C$1007,\"\",$L$9:$L$1007,\"YES\",$P$9:$P$1007,\"Therapist\")+COUNTIFS($B$9:$B$1007, \"<=\"&J5,$C$9:$C$1007,\">=\"&J4,$L$9:$L$1007,\"YES\",$P$9:$P$1007,\"Therapist\")","v":0},{"$f":"COUNTIFS($B$9:$B$1007, \"<=\"&J5,$C$9:$C$1007,\"\",$L$9:$L$1007,\"YES\",$P$9:$P$1007,\"Physician/Licensed Independent Practitioner\")+COUNTIFS($B$9:$B$1007, \"<=\"&J5,$C$9:$C$1007,\">=\"&J4,$L$9:$L$1007,\"YES\",$P$9:$P$1007,\"Physician/Licensed Independent Practitioner\")","v":0},{"$f":"COUNTIFS($B$9:$B$1007, \"<=\"&J5,$C$9:$C$1007,\"\",$L$9:$L$1007,\"YES\",$P$9:$P$1007,\"Other\")+COUNTIFS($B$9:$B$1007, \"<=\"&J5,$C$9:$C$1007,\">=\"&J4,$L$9:$L$1007,\"YES\",$P$9:$P$1007,\"Other\")","v":0}]
[null,null,null,null,null,null,null,null," ",null,null,null,null,null,null,null,null,null,"3.2 Declined",{"$f":"COUNTIFS($B$9:$B$1007, \"<=\"&J5,$C$9:$C$1007,\"\",$M$9:$M$1007,\"YES\")+COUNTIFS($B$9:$B$1007, \"<=\"&J5,$C$9:$C$1007,\">=\"&J4,$M$9:$M$1007,\"YES\")","v":0},{"$f":"COUNTIFS($B$9:$B$1007, \"<=\"&J5,$C$9:$C$1007,\"\",$M$9:$M$1007,\"YES\",$P$9:$P$1007,\"Ancillary Services\")+COUNTIFS($B$9:$B$1007, \"<=\"&J5,$C$9:$C$1007,\">=\"&J4,$M$9:$M$1007,\"YES\",$P$9:$P$1007,\"Ancillary Services\")","v":0},{"$f":"COUNTIFS($B$9:$B$1007, \"<=\"&J5,$C$9:$C$1007,\"\",$M$9:$M$1007,\"YES\",$P$9:$P$1007,\"Nurse\")+COUNTIFS($B$9:$B$1007, \"<=\"&J5,$C$9:$C$1007,\">=\"&J4,$M$9:$M$1007,\"YES\",$P$9:$P$1007,\"Nurse\")","v":0},{"$f":"COUNTIFS($B$9:$B$1007, \"<=\"&J5,$C$9:$C$1007,\"\",$M$9:$M$1007,\"YES\",$P$9:$P$1007,\"Aide/Assistant/Technician\")+COUNTIFS($B$9:$B$1007, \"<=\"&J5,$C$9:$C$1007,\">=\"&J4,$M$9:$M$1007,\"YES\",$P$9:$P$1007,\"Aide/Assistant/Technician\")","v":0},{"$f":"COUNTIFS($B$9:$B$1007, \"<=\"&J5,$C$9:$C$1007,\"\",$M$9:$M$1007,\"YES\",$P$9:$P$1007,\"Therapist\")+COUNTIFS($B$9:$B$1007, \"<=\"&J5,$C$9:$C$1007,\">=\"&J4,$M$9:$M$1007,\"YES\",$P$9:$P$1007,\"Therapist\")","v":0},{"$f":"COUNTIFS($B$9:$B$1007, \"<=\"&J5,$C$9:$C$1007,\"\",$M$9:$M$1007,\"YES\",$P$9:$P$1007,\"Physician/Licensed Independent Practitioner\")+COUNTIFS($B$9:$B$1007, \"<=\"&J5,$C$9:$C$1007,\">=\"&J4,$M$9:$M$1007,\"YES\",$P$9:$P$1007,\"Physician/Licensed Independent Practitioner\")","v":0},{"$f":"COUNTIFS($B$9:$B$1007, \"<=\"&J5,$C$9:$C$1007,\"\",$M$9:$M$1007,\"YES\",$P$9:$P$1007,\"Other\")+COUNTIFS($B$9:$B$1007, \"<=\"&J5,$C$9:$C$1007,\">=\"&J4,$M$9:$M$1007,\"YES\",$P$9:$P$1007,\"Other\")","v":0}]
[null,null,null,null,null,null,null,null," ",null,null,null,null,null,null,null,null,null,"3.3 Unknown",{"$f":"COUNTIFS($B$9:$B$1007, \"<=\"&J5,$C$9:$C$1007,\"\",$N$9:$N$1007,\"YES\")+COUNTIFS($B$9:$B$1007, \"<=\"&J5,$C$9:$C$1007,\">=\"&J4,$N$9:$N$1007,\"YES\")","v":0},{"$f":"COUNTIFS($B$9:$B$1007, \"<=\"&J5,$C$9:$C$1007,\"\",$N$9:$N$1007,\"YES\",$P$9:$P$1007,\"Ancillary Services\")+COUNTIFS($B$9:$B$1007, \"<=\"&J5,$C$9:$C$1007,\">=\"&J4,$N$9:$N$1007,\"YES\",$P$9:$P$1007,\"Ancillary Services\")","v":0},{"$f":"COUNTIFS($B$9:$B$1007, \"<=\"&J5,$C$9:$C$1007,\"\",$N$9:$N$1007,\"YES\",$P$9:$P$1007,\"Nurse\")+COUNTIFS($B$9:$B$1007, \"<=\"&J5,$C$9:$C$1007,\">=\"&J4,$N$9:$N$1007,\"YES\",$P$9:$P$1007,\"Nurse\")","v":0},{"$f":"COUNTIFS($B$9:$B$1007, \"<=\"&J5,$C$9:$C$1007,\"\",$N$9:$N$1007,\"YES\",$P$9:$P$1007,\"Aide/Assistant/Technician\")+COUNTIFS($B$9:$B$1007, \"<=\"&J5,$C$9:$C$1007,\">=\"&J4,$N$9:$N$1007,\"YES\",$P$9:$P$1007,\"Aide/Assistant/Technician\")","v":0},{"$f":"COUNTIFS($B$9:$B$1007, \"<=\"&J5,$C$9:$C$1007,\"\",$N$9:$N$1007,\"YES\",$P$9:$P$1007,\"Therapist\")+COUNTIFS($B$9:$B$1007, \"<=\"&J5,$C$9:$C$1007,\">=\"&J4,$N$9:$N$1007,\"YES\",$P$9:$P$1007,\"Therapist\")","v":0},{"$f":"COUNTIFS($B$9:$B$1007, \"<=\"&J5,$C$9:$C$1007,\"\",$N$9:$N$1007,\"YES\",$P$9:$P$1007,\"Physician/Licensed Independent Practitioner\")+COUNTIFS($B$9:$B$1007, \"<=\"&J5,$C$9:$C$1007,\">=\"&J4,$N$9:$N$1007,\"YES\",$P$9:$P$1007,\"Physician/Licensed Independent Practitioner\")","v":0},{"$f":"COUNTIFS($B$9:$B$1007, \"<=\"&J5,$C$9:$C$1007,\"\",$N$9:$N$1007,\"YES\",$P$9:$P$1007,\"Other\")+COUNTIFS($B$9:$B$1007, \"<=\"&J5,$C$9:$C$1007,\">=\"&J4,$N$9:$N$1007,\"YES\",$P$9:$P$1007,\"Other\")","v":0}]
[null,null,null,null,null,null,null,null," ",null,null,null,null,null,null,null,null,null,null,"Total","Employee","Non"]
[null,null,null,null,null,null,null,null," ",null,null,null,null,null,null,null,null,null,"5.1. Pfizer",{"$f":"COUNTIFS($B$9:$B$1007, \"<=\"&J5,$C$9:$C$1007,\"\",$G$9:$G$1007,\"Pfizer-BioNTech\",#REF!,\">=\"&J4,#REF!,\"<=\"&J5)+COUNTIFS($B$9:$B$1007, \"<=\"&J5,$C$9:$C$1007,\">=\"&J4,$G$9:$G$1007,\"Pfizer-BioNTech\",#REF!,\">=\"&J4,#REF!,\"<=\"&J5)","v":{"$error":"#REF!"}},{"$f":"COUNTIFS($B$9:$B$1007, \"<=\"&J5,$C$9:$C$1007,\"\",$G$9:$G$1007,\"Pfizer-BioNTech\",#REF!,\">=\"&J4,#REF!,\"<=\"&J5,#REF!,\"Employee\")+COUNTIFS($B$9:$B$1007, \"<=\"&J5,$C$9:$C$1007,\">=\"&J4,$G$9:$G$1007,\"Pfizer-BioNTech\",#REF!,\">=\"&J4,#REF!,\"<=\"&J5,#REF!,\"Employee\")","v":{"$error":"#REF!"}},{"$f":"COUNTIFS($B$9:$B$1007, \"<=\"&J5,$C$9:$C$1007,\"\",$G$9:$G$1007,\"Pfizer-BioNTech\",#REF!,\">=\"&J4,#REF!,\"<=\"&J5,#REF!,\"Non-Employee\")+COUNTIFS($B$9:$B$1007, \"<=\"&J5,$C$9:$C$1007,\">=\"&J4,$G$9:$G$1007,\"Pfizer-BioNTech\",#REF!,\">=\"&J4,#REF!,\"<=\"&J5,#REF!,\"Non-Employee\")","v":{"$error":"#REF!"}}]
[null,null,null,null,null,null,null,null," ",null,null,null,null,null,null,null,null,null,"5.2 Moderna",{"$f":"COUNTIFS($B$9:$B$1007, \"<=\"&J5,$C$9:$C$1007,\"\",$G$9:$G$1007,\"Moderna\",#REF!,\">=\"&J4,#REF!,\"<=\"&J5)+COUNTIFS($B$9:$B$1007, \"<=\"&J5,$C$9:$C$1007,\">=\"&J4,$G$9:$G$1007,\"Moderna\",#REF!,\">=\"&J4,#REF!,\"<=\"&J5)","v":{"$error":"#REF!"}},{"$f":"COUNTIFS($B$9:$B$1007, \"<=\"&J5,$C$9:$C$1007,\"\",$G$9:$G$1007,\"Moderna\",#REF!,\">=\"&J4,#REF!,\"<=\"&J5,#REF!,\"Employee\")+COUNTIFS($B$9:$B$1007, \"<=\"&J5,$C$9:$C$1007,\">=\"&J4,$G$9:$G$1007,\"Moderna\",#REF!,\">=\"&J4,#REF!,\"<=\"&J5,#REF!,\"Employee\")","v":{"$error":"#REF!"}},{"$f":"COUNTIFS($B$9:$B$1007, \"<=\"&J5,$C$9:$C$1007,\"\",$G$9:$G$1007,\"Moderna\",#REF!,\">=\"&J4,#REF!,\"<=\"&J5,#REF!,\"Non-Employee\")+COUNTIFS($B$9:$B$1007, \"<=\"&J5,$C$9:$C$1007,\">=\"&J4,$G$9:$G$1007,\"Moderna\",#REF!,\">=\"&J4,#REF!,\"<=\"&J5,#REF!,\"Non-Employee\")","v":{"$error":"#REF!"}}]
[null,null,null,null,null,null,null,null," ",null,null,null,null,null,null,null,null,null,"5.3 Janssen",{"$f":"COUNTIFS($B$9:$B$1007, \"<=\"&J5,$C$9:$C$1007,\"\",$G$9:$G$1007,\"Janssen\",#REF!,\">=\"&J4,#REF!,\"<=\"&J5)+COUNTIFS($B$9:$B$1007, \"<=\"&J5,$C$9:$C$1007,\">=\"&J4,$G$9:$G$1007,\"Janssen\",#REF!,\">=\"&J4,#REF!,\"<=\"&J5)","v":{"$error":"#REF!"}},{"$f":"COUNTIFS($B$9:$B$1007, \"<=\"&J5,$C$9:$C$1007,\"\",$G$9:$G$1007,\"Janssen\",#REF!,\">=\"&J4,#REF!,\"<=\"&J5,#REF!,\"Employee\")+COUNTIFS($B$9:$B$1007, \"<=\"&J5,$C$9:$C$1007,\">=\"&J4,$G$9:$G$1007,\"Janssen\",#REF!,\">=\"&J4,#REF!,\"<=\"&J5,#REF!,\"Employee\")","v":{"$error":"#REF!"}},{"$f":"COUNTIFS($B$9:$B$1007, \"<=\"&J5,$C$9:$C$1007,\"\",$G$9:$G$1007,\"Janssen\",#REF!,\">=\"&J4,#REF!,\"<=\"&J5,#REF!,\"Non-Employee\")+COUNTIFS($B$9:$B$1007, \"<=\"&J5,$C$9:$C$1007,\">=\"&J4,$G$9:$G$1007,\"Janssen\",#REF!,\">=\"&J4,#REF!,\"<=\"&J5,#REF!,\"Non-Employee\")","v":{"$error":"#REF!"}}]
[null,null,null,null,null,null,null,null," "]
[null,null,null,null,null,null,null,null," "]
[null,null,null,null,null,null,null,null," "]
[null,null,null,null,null,null,null,null," "]
[null,null,null,null,null,null,null,null," "]
[null,null,null,null,null,null,null,null," "]
[null,null,null,null,null,null,null,null," "]
[null,null,null,null,null,null,null,null," "]
[null,null,null,null,null,null,null,null," "]
[null,null,null,null,null,null,null,null," "]
[null,null,null,null,null,null,null,null," "]
[null,null,null,null,null,null,null,null," "]
[null,null,null,null,null,null,null,null," "]
[null,null,null,null,null,null,null,null," "]
[null,null,null,null,null,null,null,null," "]
[null,null,null,null,null,null,null,null," "]
[null,null,null,null,null,null,null,null," "]
[null,null,null,null,null,null,null,null," "]
[null,null,null,null,null,null,null,null," "]
[null,null,null,null,null,null,null,null," "]
[null,null,null,null,null,null,null,null," "]
[null,null,null,null,null,null,null,null," "]
[null,null,null,null,null,null,null,null," "]
[null,null,null,null,null,null,null,null," "]
[null,null,null,null,null,null,null,null," "]
[null,null,null,null,null,null,null,null," "]
[null,null,null,null,null,null,null,null," "]
[null,null,null,null,null,null,null,null," "]
[null,null,null,null,null,null,null,null," "]
[null,null,null,null,null,null,null,null," "]
[null,null,null,null,null,null,null,null," "]
[null,null,null,null,null,null,null,null," "]
[null,null,null,null,null,null,null,null," "]
[null,null,null,null,null,null,null,null," "]
[null,null,null,null,null,null,null,null," "]
[null,null,null,null,null,null,null,null," "]
[null,null,null,null,null,null,null,null," "]
[null,null,null,null,null,null,null,null," "]
[null,null,null,null,null,null,null,null," "]
[null,null,null,null,null,null,null,null," "]
[null,null,null,null,null,null,null,null," "]
[null,null,null,null,null,null,null,null," "]
[null,null,null,null,null,null,null,null," "]
[null,null,null,null,null,null,null,null," "]
[null,null,null,null,null,null,null,null," "]
[null,null,null,null,null,null,null,null," "]
[null,null,null,null,null,null,null,null," "]
[null,null,null,null,null,null,null,null," "]
[null,null,null,null,null,null,null,null," "]
[null,null,null,null,null,null,null,null," "]
[null,null,null,null,null,null,null,null," "]
[null,null,null,null,null,null,null,null,{"$f":"IF(G74=\"Pfizer-BioNTech\",\"Pfizer-BioNTech\",IF(G74=\"Moderna\",\"Moderna\", IF(G74=\"Janssen\",\"\",\" \")))","v":" "}]
[null,null,null,null,null,null,null,null," "]
[null,null,null,null,null,null,null,null," "]
[null,null,null,null,null,null,null,null," "]
[null,null,null,null,null,null,null,null," "]
[null,null,null,null,null,null,null,null," "]
[null,null,null,null,null,null,null,null," "]
[null,null,null,null,null,null,null,null," "]
[null,null,null,null,null,null,null,null," "]
[null,null,null,null,null,null,null,null," "]
[null,null,null,null,null,null,null,null," "]
[null,null,null,null,null,null,null,null," "]
[null,null,null,null,null,null,null,null," "]
[null,null,null,null,null,null,null,null," "]
[null,null,null,null,null,null,null,null," "]
[null,null,null,null,null,null,null,null," "]
[null,null,null,null,null,null,null,null," "]
[null,null,null,null,null,null,null,null," "]
[null,null,null,null,null,null,null,null," "]
[null,null,null,null,null,null,null,null," "]
[null,null,null,null,null,null,null,null," "]
[null,null,null,null,null,null,null,null," "]
[null,null,null,null,null,null,null,null," "]
[null,null,null,null,null,null,null,null," "]
[null,null,null,null,null,null,null,null," "]
[null,null,null,null,null,null,null,null," "]
[null,null,null,null,null,null,null,null," "]
[null,null,null,null,null,null,null,null," "]
[null,null,null,null,null,null,null,null," "]
[null,null,null,null,null,null,null,null," "]
[null,null,null,null,null,null,null,null," "]
[null,null,null,null,null,null,null,null," "]
[null,null,null,null,null,null,null,null," "]
[null,null,null,null,null,null,null,null," "]
[null,null,null,null,null,null,null,null," "]
[null,null,null,null,null,null,null,null," "]
[null,null,null,null,null,null,null,null," "]
[null,null,null,null,null,null,null,null," "]
[null,null,null,null,null,null,null,null," "]
[null,null,null,null,null,null,null,null," "]
[null,null,null,null,null,null,null,null," "]
[null,null,null,null,null,null,null,null," "]
[null,null,null,null,null,null,null,null," "]
[null,null,null,null,null,null,null,null," "]
[null,null,null,null,null,null,null,null," "]
[null,null,null,null,null,null,null,null," "]
[null,null,null,null,null,null,null,null," "]
[null,null,null,null,null,null,null,null," "]
[null,null,null,null,null,null,null,null," "]
[null,null,null,null,null,null,null,null," "]
[null,null,null,null,null,null,null,null," "]
[null,null,null,null,null,null,null,null," "]
[null,null,null,null,null,null,null,null," "]
[null,null,null,null,null,null,null,null," "]
[null,null,null,null,null,null,null,null," "]
[null,null,null,null,null,null,null,null," "]
[null,null,null,null,null,null,null,null," "]
[null,null,null,null,null,null,null,null," "]
[null,null,null,null,null,null,null,null," "]
[null,null,null,null,null,null,null,null," "]
[null,null,null,null,null,null,null,null," "]
[null,null,null,null,null,null,null,null," "]
[null,null,null,null,null,null,null,null," "]
[null,null,null,null,null,null,null,null," "]
[null,null,null,null,null,null,null,null,{"$f":"IF(G138=\"Pfizer-BioNTech\",\"Pfizer-BioNTech\",IF(G138=\"Moderna\",\"Moderna\", IF(G138=\"Janssen\",\"\",\" \")))","v":" "}]
[null,null,null,null,null,null,null,null," "]
[null,null,null,null,null,null,null,null," "]
[null,null,null,null,null,null,null,null," "]
[null,null,null,null,null,null,null,null," "]
[null,null,null,null,null,null,null,null," "]
[null,null,null,null,null,null,null,null," "]
[null,null,null,null,null,null,null,null," "]
[null,null,null,null,null,null,null,null," "]
[null,null,null,null,null,null,null,null," "]
[null,null,null,null,null,null,null,null," "]
[null,null,null,null,null,null,null,null," "]
[null,null,null,null,null,null,null,null," "]
[null,null,null,null,null,null,null,null," "]
[null,null,null,null,null,null,null,null," "]
[null,null,null,null,null,null,null,null," "]
[null,null,null,null,null,null,null,null," "]
[null,null,null,null,null,null,null,null," "]
[null,null,null,null,null,null,null,null," "]
[null,null,null,null,null,null,null,null," "]
[null,null,null,null,null,null,null,null," "]
[null,null,null,null,null,null,null,null," "]
[null,null,null,null,null,null,null,null," "]
[null,null,null,null,null,null,null,null," "]
[null,null,null,null,null,null,null,null," "]
[null,null,null,null,null,null,null,null," "]
[null,null,null,null,null,null,null,null," "]
[null,null,null,null,null,null,null,null," "]
[null,null,null,null,null,null,null,null," "]
[null,null,null,null,null,null,null,null," "]
[null,null,null,null,null,null,null,null," "]
[null,null,null,null,null,null,null,null," "]
[null,null,null,null,null,null,null,null," "]
[null,null,null,null,null,null,null,null," "]
[null,null,null,null,null,null,null,null," "]
[null,null,null,null,null,null,null,null," "]
[null,null,null,null,null,null,null,null," "]
[null,null,null,null,null,null,null,null," "]
[null,null,null,null,null,null,null,null," "]
[null,null,null,null,null,null,null,null," "]
[null,null,null,null,null,null,null,null," "]
[null,null,null,null,null,null,null,null," "]
[null,null,null,null,null,null,null,null," "]
[null,null,null,null,null,null,null,null," "]
[null,null,null,null,null,null,null,null," "]
[null,null,null,null,null,null,null,null," "]
[null,null,null,null,null,null,null,null," "]
[null,null,null,null,null,null,null,null," "]
[null,null,null,null,null,null,null,null," "]
[null,null,null,null,null,null,null,null," "]
[null,null,null,null,null,null,null,null," "]
[null,null,null,null,null,null,null,null," "]
[null,null,null,null,null,null,null,null," "]
[null,null,null,null,null,null,null,null," "]
[null,null,null,null,null,null,null,null," "]
[null,null,null,null,null,null,null,null," "]
[null,null,null,null,null,null,null,null," "]
[null,null,null,null,null,null,null,null," "]
[null,null,null,null,null,null,null,null," "]
[null,null,null,null,null,null,null,null," "]
[null,null,null,null,null,null,null,null," "]
[null,null,null,null,null,null,null,null," "]
[null,null,null,null,null,null,null,null," "]
[null,null,null,null,null,null,null,null," "]
[null,null,null,null,null,null,null,null,{"$f":"IF(G202=\"Pfizer-BioNTech\",\"Pfizer-BioNTech\",IF(G202=\"Moderna\",\"Moderna\", IF(G202=\"Janssen\",\"\",\" \")))","v":" "}]
[null,null,null,null,null,null,null,null," "]
[null,null,null,null,null,null,null,null," "]
[null,null,null,null,null,null,null,null," "]
[null,null,null,null,null,null,null,null," "]
[null,null,null,null,null,null,null,null," "]
[null,null,null,null,null,null,null,null," "]
[null,null,null,null,null,null,null,null," "]
[null,null,null,null,null,null,null,null," "]
[null,null,null,null,null,null,null,null," "]
[null,null,null,null,null,null,null,null," "]
[null,null,null,null,null,null,null,null," "]
[null,null,null,null,null,null,null,null," "]
[null,null,null,null,null,null,null,null," "]
[null,null,null,null,null,null,null,null," "]
[null,null,null,null,null,null,null,null," "]
[null,null,null,null,null,null,null,null," "]
[null,null,null,null,null,null,null,null," "]
[null,null,null,null,null,null,null,null," "]
[null,null,null,null,null,null,null,null," "]
[null,null,null,null,null,null,null,null," "]
[null,null,null,null,null,null,null,null," "]
[null,null,null,null,null,null,null,null," "]
[null,null,null,null,null,null,null,null," "]
[null,null,null,null,null,null,null,null," "]
[null,null,null,null,null,null,null,null," "]
[null,null,null,null,null,null,null,null," "]
[null,null,null,null,null,null,null,null," "]
[null,null,null,null,null,null,null,null," "]
[null,null,null,null,null,null,null,null," "]
[null,null,null,null,null,null,null,null," "]
[null,null,null,null,null,null,null,null," "]
[null,null,null,null,null,null,null,null," "]
[null,null,null,null,null,null,null,null," "]
[null,null,null,null,null,null,null,null," "]
[null,null,null,null,null,null,null,null," "]
[null,null,null,null,null,null,null,null," "]
[null,null,null,null,null,null,null,null," "]
[null,null,null,null,null,null,null,null," "]
[null,null,null,null,null,null,null,null," "]
[null,null,null,null,null,null,null,null," "]
[null,null,null,null,null,null,null,null," "]
[null,null,null,null,null,null,null,null," "]
[null,null,null,null,null,null,null,null," "]
[null,null,null,null,null,null,null,null," "]
[null,null,null,null,null,null,null,null," "]
[null,null,null,null,null,null,null,null," "]
[null,null,null,null,null,null,null,null," "]
[null,null,null,null,null,null,null,null," "]
[null,null,null,null,null,null,null,null," "]
[null,null,null,null,null,null,null,null," "]
[null,null,null,null,null,null,null,null," "]
[null,null,null,null,null,null,null,null," "]
[null,null,null,null,null,null,null,null," "]
[null,null,null,null,null,null,null,null," "]
[null,null,null,null,null,null,null,null," "]
[null,null,null,null,null,null,null,null," "]
[null,null,null,null,null,null,null,null," "]
[null,null,null,null,null,null,null,null," "]
[null,null,null,null,null,null,null,null," "]
[null,null,null,null,null,null,null,null," "]
[null,null,null,null,null,null,null,null," "]
[null,null,null,null,null,null,null,null," "]
[null,null,null,null,null,null,null,null," "]
[null,null,null,null,null,null,null,null,{"$f":"IF(G266=\"Pfizer-BioNTech\",\"Pfizer-BioNTech\",IF(G266=\"Moderna\",\"Moderna\", IF(G266=\"Janssen\",\"\",\" \")))","v":" "}]
[null,null,null,null,null,null,null,null," "]
[null,null,null,null,null,null,null,null," "]
[null,null,null,null,null,null,null,null," "]
[null,null,null,null,null,null,null,null," "]
[null,null,null,null,null,null,null,null," "]
[null,null,null,null,null,null,null,null," "]
[null,null,null,null,null,null,null,null," "]
[null,null,null,null,null,null,null,null," "]
[null,null,null,null,null,null,null,null," "]
[null,null,null,null,null,null,null,null," "]
[null,null,null,null,null,null,null,null," "]
[null,null,null,null,null,null,null,null," "]
[null,null,null,null,null,null,null,null," "]
[null,null,null,null,null,null,null,null," "]
[null,null,null,null,null,null,null,null," "]
[null,null,null,null,null,null,null,null," "]
[null,null,null,null,null,null,null,null," "]
[null,null,null,null,null,null,null,null," "]
[null,null,null,null,null,null,null,null," "]
[null,null,null,null,null,null,null,null," "]
[null,null,null,null,null,null,null,null," "]
[null,null,null,null,null,null,null,null," "]
[null,null,null,null,null,null,null,null," "]
[null,null,null,null,null,null,null,null," "]
[null,null,null,null,null,null,null,null," "]
[null,null,null,null,null,null,null,null," "]
[null,null,null,null,null,null,null,null," "]
[null,null,null,null,null,null,null,null," "]
[null,null,null,null,null,null,null,null," "]
[null,null,null,null,null,null,null,null," "]
[null,null,null,null,null,null,null,null," "]
[null,null,null,null,null,null,null,null," "]
[null,null,null,null,null,null,null,null," "]
[null,null,null,null,null,null,null,null," "]
[null,null,null,null,null,null,null,null," "]
[null,null,null,null,null,null,null,null," "]
[null,null,null,null,null,null,null,null," "]
[null,null,null,null,null,null,null,null," "]
[null,null,null,null,null,null,null,null," "]
[null,null,null,null,null,null,null,null," "]
[null,null,null,null,null,null,null,null," "]
[null,null,null,null,null,null,null,null," "]
[null,null,null,null,null,null,null,null," "]
[null,null,null,null,null,null,null,null," "]
[null,null,null,null,null,null,null,null," "]
[null,null,null,null,null,null,null,null," "]
[null,null,null,null,null,null,null,null," "]
[null,null,null,null,null,null,null,null," "]
[null,null,null,null,null,null,null,null," "]
[null,null,null,null,null,null,null,null," "]
[null,null,null,null,null,null,null,null," "]
[null,null,null,null,null,null,null,null," "]
[null,null,null,null,null,null,null,null," "]
[null,null,null,null,null,null,null,null," "]
[null,null,null,null,null,null,null,null," "]
[null,null,null,null,null,null,null,null," "]
[null,null,null,null,null,null,null,null," "]
[null,null,null,null,null,null,null,null," "]
[null,null,null,null,null,null,null,null," "]
[null,null,null,null,null,null,null,null," "]
[null,null,null,null,null,null,null,null," "]
[null,null,null,null,null,null,null,null," "]
[null,null,null,null,null,null,null,null," "]
[null,null,null,null,null,null,null,null,{"$f":"IF(G330=\"Pfizer-BioNTech\",\"Pfizer-BioNTech\",IF(G330=\"Moderna\",\"Moderna\", IF(G330=\"Janssen\",\"\",\" \")))","v":" "}]
[null,null,null,null,null,null,null,null," "]
[null,null,null,null,null,null,null,null," "]
[null,null,null,null,null,null,null,null," "]
[null,null,null,null,null,null,null,null," "]
[null,null,null,null,null,null,null,null," "]
[null,null,null,null,null,null,null,null," "]
[null,null,null,null,null,null,null,null," "]
[null,null,null,null,null,null,null,null," "]
[null,null,null,null,null,null,null,null," "]
[null,null,null,null,null,null,null,null," "]
[null,null,null,null,null,null,null,null," "]
[null,null,null,null,null,null,null,null," "]
[null,null,null,null,null,null,null,null," "]
[null,null,null,null,null,null,null,null," "]
[null,null,null,null,null,null,null,null," "]
[null,null,null,null,null,null,null,null," "]
[null,null,null,null,null,null,null,null," "]
[null,null,null,null,null,null,null,null," "]
[null,null,null,null,null,null,null,null," "]
[null,null,null,null,null,null,null,null," "]
[null,null,null,null,null,null,null,null," "]
[null,null,null,null,null,null,null,null," "]
[null,null,null,null,null,null,null,null," "]
[null,null,null,null,null,null,null,null," "]
[null,null,null,null,null,null,null,null," "]
[null,null,null,null,null,null,null,null," "]
[null,null,null,null,null,null,null,null," "]
[null,null,null,null,null,null,null,null," "]
[null,null,null,null,null,null,null,null," "]
[null,null,null,null,null,null,null,null," "]
[null,null,null,null,null,null,null,null," "]
[null,null,null,null,null,null,null,null," "]
[null,null,null,null,null,null,null,null," "]
[null,null,null,null,null,null,null,null," "]
[null,null,null,null,null,null,null,null," "]
[null,null,null,null,null,null,null,null," "]
[null,null,null,null,null,null,null,null," "]
[null,null,null,null,null,null,null,null," "]
[null,null,null,null,null,null,null,null," "]
[null,null,null,null,null,null,null,null," "]
[null,null,null,null,null,null,null,null," "]
[null,null,null,null,null,null,null,null," "]
[null,null,null,null,null,null,null,null," "]
[null,null,null,null,null,null,null,null," "]
[null,null,null,null,null,null,null,null," "]
[null,null,null,null,null,null,null,null," "]
[null,null,null,null,null,null,null,null," "]
[null,null,null,null,null,null,null,null," "]
[null,null,null,null,null,null,null,null," "]
[null,null,null,null,null,null,null,null," "]
[null,null,null,null,null,null,null,null," "]
[null,null,null,null,null,null,null,null," "]
[null,null,null,null,null,null,null,null," "]
[null,null,null,null,null,null,null,null," "]
[null,null,null,null,null,null,null,null," "]
[null,null,null,null,null,null,null,null," "]
[null,null,null,null,null,null,null,null," "]
[null,null,null,null,null,null,null,null," "]
[null,null,null,null,null,null,null,null," "]
[null,null,null,null,null,null,null,null," "]
[null,null,null,null,null,null,null,null," "]
[null,null,null,null,null,null,null,null," "]
[null,null,null,null,null,null,null,null," "]
[null,null,null,null,null,null,null,null,{"$f":"IF(G394=\"Pfizer-BioNTech\",\"Pfizer-BioNTech\",IF(G394=\"Moderna\",\"Moderna\", IF(G394=\"Janssen\",\"\",\" \")))","v":" "}]
[null,null,null,null,null,null,null,null," "]
[null,null,null,null,null,null,null,null," "]
[null,null,null,null,null,null,null,null," "]
[null,null,null,null,null,null,null,null," "]
[null,null,null,null,null,null,null,null," "]
[null,null,null,null,null,null,null,null," "]
[null,null,null,null,null,null,null,null," "]
[null,null,null,null,null,null,null,null," "]
[null,null,null,null,null,null,null,null," "]
[null,null,null,null,null,null,null,null," "]
[null,null,null,null,null,null,null,null," "]
[null,null,null,null,null,null,null,null," "]
[null,null,null,null,null,null,null,null," "]
[null,null,null,null,null,null,null,null," "]
[null,null,null,null,null,null,null,null," "]
[null,null,null,null,null,null,null,null," "]
[null,null,null,null,null,null,null,null," "]
[null,null,null,null,null,null,null,null," "]
[null,null,null,null,null,null,null,null," "]
[null,null,null,null,null,null,null,null," "]
[null,null,null,null,null,null,null,null," "]
[null,null,null,null,null,null,null,null," "]
[null,null,null,null,null,null,null,null," "]
[null,null,null,null,null,null,null,null," "]
[null,null,null,null,null,null,null,null," "]
[null,null,null,null,null,null,null,null," "]
[null,null,null,null,null,null,null,null," "]
[null,null,null,null,null,null,null,null," "]
[null,null,null,null,null,null,null,null," "]
[null,null,null,null,null,null,null,null," "]
[null,null,null,null,null,null,null,null," "]
[null,null,null,null,null,null,null,null," "]
[null,null,null,null,null,null,null,null," "]
[null,null,null,null,null,null,null,null," "]
[null,null,null,null,null,null,null,null," "]
[null,null,null,null,null,null,null,null," "]
[null,null,null,null,null,null,null,null," "]
[null,null,null,null,null,null,null,null," "]
[null,null,null,null,null,null,null,null," "]
[null,null,null,null,null,null,null,null," "]
[null,null,null,null,null,null,null,null," "]
[null,null,null,null,null,null,null,null," "]
[null,null,null,null,null,null,null,null," "]
[null,null,null,null,null,null,null,null," "]
[null,null,null,null,null,null,null,null," "]
[null,null,null,null,null,null,null,null," "]
[null,null,null,null,null,null,null,null," "]
[null,null,null,null,null,null,null,null," "]
[null,null,null,null,null,null,null,null," "]
[null,null,null,null,null,null,null,null," "]
[null,null,null,null,null,null,null,null," "]
[null,null,null,null,null,null,null,null," "]
[null,null,null,null,null,null,null,null," "]
[null,null,null,null,null,null,null,null," "]
[null,null,null,null,null,null,null,null," "]
[null,null,null,null,null,null,null,null," "]
[null,null,null,null,null,null,null,null," "]
[null,null,null,null,null,null,null,null," "]
[null,null,null,null,null,null,null,null," "]
[null,null,null,null,null,null,null,null," "]
[null,null,null,null,null,null,null,null," "]
[null,null,null,null,null,null,null,null," "]
[null,null,null,null,null,null,null,null," "]
[null,null,null,null,null,null,null,null,{"$f":"IF(G458=\"Pfizer-BioNTech\",\"Pfizer-BioNTech\",IF(G458=\"Moderna\",\"Moderna\", IF(G458=\"Janssen\",\"\",\" \")))","v":" "}]
[null,null,null,null,null,null,null,null," "]
[null,null,null,null,null,null,null,null," "]
[null,null,null,null,null,null,null,null," "]
[null,null,null,null,null,null,null,null," "]
[null,null,null,null,null,null,null,null," "]
[null,null,null,null,null,null,null,null," "]
[null,null,null,null,null,null,null,null," "]
[null,null,null,null,null,null,null,null," "]
[null,null,null,null,null,null,null,null," "]
[null,null,null,null,null,null,null,null," "]
[null,null,null,null,null,null,null,null," "]
[null,null,null,null,null,null,null,null," "]
[null,null,null,null,null,null,null,null," "]
[null,null,null,null,null,null,null,null," "]
[null,null,null,null,null,null,null,null," "]
[null,null,null,null,null,null,null,null," "]
[null,null,null,null,null,null,null,null," "]
[null,null,null,null,null,null,null,null," "]
[null,null,null,null,null,null,null,null," "]
[null,null,null,null,null,null,null,null," "]
[null,null,null,null,null,null,null,null," "]
[null,null,null,null,null,null,null,null," "]
[null,null,null,null,null,null,null,null," "]
[null,null,null,null,null,null,null,null," "]
[null,null,null,null,null,null,null,null," "]
[null,null,null,null,null,null,null,null," "]
[null,null,null,null,null,null,null,null," "]
[null,null,null,null,null,null,null,null," "]
[null,null,null,null,null,null,null,null," "]
[null,null,null,null,null,null,null,null," "]
[null,null,null,null,null,null,null,null," "]
[null,null,null,null,null,null,null,null," "]
[null,null,null,null,null,null,null,null," "]
[null,null,null,null,null,null,null,null," "]
[null,null,null,null,null,null,null,null," "]
[null,null,null,null,null,null,null,null," "]
[null,null,null,null,null,null,null,null," "]
[null,null,null,null,null,null,null,null," "]
[null,null,null,null,null,null,null,null," "]
[null,null,null,null,null,null,null,null," "]
[null,null,null,null,null,null,null,null," "]
[null,null,null,null,null,null,null,null," "]
[null,null,null,null,null,null,null,null," "]
[null,null,null,null,null,null,null,null," "]
[null,null,null,null,null,null,null,null," "]
[null,null,null,null,null,null,null,null," "]
[null,null,null,null,null,null,null,null," "]
[null,null,null,null,null,null,null,null," "]
[null,null,null,null,null,null,null,null," "]
[null,null,null,null,null,null,null,null," "]
[null,null,null,null,null,null,null,null," "]
[null,null,null,null,null,null,null,null," "]
[null,null,null,null,null,null,null,null," "]
[null,null,null,null,null,null,null,null," "]
[null,null,null,null,null,null,null,null," "]
[null,null,null,null,null,null,null,null," "]
[null,null,null,null,null,null,null,null," "]
[null,null,null,null,null,null,null,null," "]
[null,null,null,null,null,null,null,null," "]
[null,null,null,null,null,null,null,null," "]
[null,null,null,null,null,null,null,null," "]
[null,null,null,null,null,null,null,null," "]
[null,null,null,null,null,null,null,null," "]
[null,null,null,null,null,null,null,null,{"$f":"IF(G522=\"Pfizer-BioNTech\",\"Pfizer-BioNTech\",IF(G522=\"Moderna\",\"Moderna\", IF(G522=\"Janssen\",\"\",\" \")))","v":" "}]
[null,null,null,null,null,null,null,null," "]
[null,null,null,null,null,null,null,null," "]
[null,null,null,null,null,null,null,null," "]
[null,null,null,null,null,null,null,null," "]
[null,null,null,null,null,null,null,null," "]
[null,null,null,null,null,null,null,null," "]
[null,null,null,null,null,null,null,null," "]
[null,null,null,null,null,null,null,null," "]
[null,null,null,null,null,null,null,null," "]
[null,null,null,null,null,null,null,null," "]
[null,null,null,null,null,null,null,null," "]
[null,null,null,null,null,null,null,null," "]
[null,null,null,null,null,null,null,null," "]
[null,null,null,null,null,null,null,null," "]
[null,null,null,null,null,null,null,null," "]
[null,null,null,null,null,null,null,null," "]
[null,null,null,null,null,null,null,null," "]
[null,null,null,null,null,null,null,null," "]
[null,null,null,null,null,null,null,null," "]
[null,null,null,null,null,null,null,null," "]
[null,null,null,null,null,null,null,null," "]
[null,null,null,null,null,null,null,null," "]
[null,null,null,null,null,null,null,null," "]
[null,null,null,null,null,null,null,null," "]
[null,null,null,null,null,null,null,null," "]
[null,null,null,null,null,null,null,null," "]
[null,null,null,null,null,null,null,null," "]
[null,null,null,null,null,null,null,null," "]
[null,null,null,null,null,null,null,null," "]
[null,null,null,null,null,null,null,null," "]
[null,null,null,null,null,null,null,null," "]
[null,null,null,null,null,null,null,null," "]
[null,null,null,null,null,null,null,null," "]
[null,null,null,null,null,null,null,null," "]
[null,null,null,null,null,null,null,null," "]
[null,null,null,null,null,null,null,null," "]
[null,null,null,null,null,null,null,null," "]
[null,null,null,null,null,null,null,null," "]
[null,null,null,null,null,null,null,null," "]
[null,null,null,null,null,null,null,null," "]
[null,null,null,null,null,null,null,null," "]
[null,null,null,null,null,null,null,null," "]
[null,null,null,null,null,null,null,null," "]
[null,null,null,null,null,null,null,null," "]
[null,null,null,null,null,null,null,null," "]
[null,null,null,null,null,null,null,null," "]
[null,null,null,null,null,null,null,null," "]
[null,null,null,null,null,null,null,null," "]
[null,null,null,null,null,null,null,null," "]
[null,null,null,null,null,null,null,null," "]
[null,null,null,null,null,null,null,null," "]
[null,null,null,null,null,null,null,null," "]
[null,null,null,null,null,null,null,null," "]
[null,null,null,null,null,null,null,null," "]
[null,null,null,null,null,null,null,null," "]
[null,null,null,null,null,null,null,null," "]
[null,null,null,null,null,null,null,null," "]
[null,null,null,null,null,null,null,null," "]
[null,null,null,null,null,null,null,null," "]
[null,null,null,null,null,null,null,null," "]
[null,null,null,null,null,null,null,null," "]
[null,null,null,null,null,null,null,null," "]
[null,null,null,null,null,null,null,null," "]
[null,null,null,null,null,null,null,null,{"$f":"IF(G586=\"Pfizer-BioNTech\",\"Pfizer-BioNTech\",IF(G586=\"Moderna\",\"Moderna\", IF(G586=\"Janssen\",\"\",\" \")))","v":" "}]
[null,null,null,null,null,null,null,null," "]
[null,null,null,null,null,null,null,null," "]
[null,null,null,null,null,null,null,null," "]
[null,null,null,null,null,null,null,null," "]
[null,null,null,null,null,null,null,null," "]
[null,null,null,null,null,null,null,null," "]
[null,null,null,null,null,null,null,null," "]
[null,null,null,null,null,null,null,null," "]
[null,null,null,null,null,null,null,null," "]
[null,null,null,null,null,null,null,null," "]
[null,null,null,null,null,null,null,null," "]
[null,null,null,null,null,null,null,null," "]
[null,null,null,null,null,null,null,null," "]
[null,null,null,null,null,null,null,null," "]
[null,null,null,null,null,null,null,null," "]
[null,null,null,null,null,null,null,null," "]
[null,null,null,null,null,null,null,null," "]
[null,null,null,null,null,null,null,null," "]
[null,null,null,null,null,null,null,null," "]
[null,null,null,null,null,null,null,null," "]
[null,null,null,null,null,null,null,null," "]
[null,null,null,null,null,null,null,null," "]
[null,null,null,null,null,null,null,null," "]
[null,null,null,null,null,null,null,null," "]
[null,null,null,null,null,null,null,null," "]
[null,null,null,null,null,null,null,null," "]
[null,null,null,null,null,null,null,null," "]
[null,null,null,null,null,null,null,null," "]
[null,null,null,null,null,null,null,null," "]
[null,null,null,null,null,null,null,null," "]
[null,null,null,null,null,null,null,null," "]
[null,null,null,null,null,null,null,null," "]
[null,null,null,null,null,null,null,null," "]
[null,null,null,null,null,null,null,null," "]
[null,null,null,null,null,null,null,null," "]
[null,null,null,null,null,null,null,null," "]
[null,null,null,null,null,null,null,null," "]
[null,null,null,null,null,null,null,null," "]
[null,null,null,null,null,null,null,null," "]
[null,null,null,null,null,null,null,null," "]
[null,null,null,null,null,null,null,null," "]
[null,null,null,null,null,null,null,null," "]
[null,null,null,null,null,null,null,null," "]
[null,null,null,null,null,null,null,null," "]
[null,null,null,null,null,null,null,null," "]
[null,null,null,null,null,null,null,null," "]
[null,null,null,null,null,null,null,null," "]
[null,null,null,null,null,null,null,null," "]
[null,null,null,null,null,null,null,null," "]
[null,null,null,null,null,null,null,null," "]
[null,null,null,null,null,null,null,null," "]
[null,null,null,null,null,null,null,null," "]
[null,null,null,null,null,null,null,null," "]
[null,null,null,null,null,null,null,null," "]
[null,null,null,null,null,null,null,null," "]
[null,null,null,null,null,null,null,null," "]
[null,null,null,null,null,null,null,null," "]
[null,null,null,null,null,null,null,null," "]
[null,null,null,null,null,null,null,null," "]
[null,null,null,null,null,null,null,null," "]
[null,null,null,null,null,null,null,null," "]
[null,null,null,null,null,null,null,null," "]
[null,null,null,null,null,null,null,null," "]
[null,null,null,null,null,null,null,null,{"$f":"IF(G650=\"Pfizer-BioNTech\",\"Pfizer-BioNTech\",IF(G650=\"Moderna\",\"Moderna\", IF(G650=\"Janssen\",\"\",\" \")))","v":" "}]
[null,null,null,null,null,null,null,null," "]
[null,null,null,null,null,null,null,null," "]
[null,null,null,null,null,null,null,null," "]
[null,null,null,null,null,null,null,null," "]
[null,null,null,null,null,null,null,null," "]
[null,null,null,null,null,null,null,null," "]
[null,null,null,null,null,null,null,null," "]
[null,null,null,null,null,null,null,null," "]
[null,null,null,null,null,null,null,null," "]
[null,null,null,null,null,null,null,null," "]
[null,null,null,null,null,null,null,null," "]
[null,null,null,null,null,null,null,null," "]
[null,null,null,null,null,null,null,null," "]
[null,null,null,null,null,null,null,null," "]
[null,null,null,null,null,null,null,null," "]
[null,null,null,null,null,null,null,null," "]
[null,null,null,null,null,null,null,null," "]
[null,null,null,null,null,null,null,null," "]
[null,null,null,null,null,null,null,null," "]
[null,null,null,null,null,null,null,null," "]
[null,null,null,null,null,null,null,null," "]
[null,null,null,null,null,null,null,null," "]
[null,null,null,null,null,null,null,null," "]
[null,null,null,null,null,null,null,null," "]
[null,null,null,null,null,null,null,null," "]
[null,null,null,null,null,null,null,null," "]
[null,null,null,null,null,null,null,null," "]
[null,null,null,null,null,null,null,null," "]
[null,null,null,null,null,null,null,null," "]
[null,null,null,null,null,null,null,null," "]
[null,null,null,null,null,null,null,null," "]
[null,null,null,null,null,null,null,null," "]
[null,null,null,null,null,null,null,null," "]
[null,null,null,null,null,null,null,null," "]
[null,null,null,null,null,null,null,null," "]
[null,null,null,null,null,null,null,null," "]
[null,null,null,null,null,null,null,null," "]
[null,null,null,null,null,null,null,null," "]
[null,null,null,null,null,null,null,null," "]
[null,null,null,null,null,null,null,null," "]
[null,null,null,null,null,null,null,null," "]
[null,null,null,null,null,null,null,null," "]
[null,null,null,null,null,null,null,null," "]
[null,null,null,null,null,null,null,null," "]
[null,null,null,null,null,null,null,null," "]
[null,null,null,null,null,null,null,null," "]
[null,null,null,null,null,null,null,null," "]
[null,null,null,null,null,null,null,null," "]
[null,null,null,null,null,null,null,null," "]
[null,null,null,null,null,null,null,null," "]
[null,null,null,null,null,null,null,null," "]
[null,null,null,null,null,null,null,null," "]
[null,null,null,null,null,null,null,null," "]
[null,null,null,null,null,null,null,null," "]
[null,null,null,null,null,null,null,null," "]
[null,null,null,null,null,null,null,null," "]
[null,null,null,null,null,null,null,null," "]
[null,null,null,null,null,null,null,null," "]
[null,null,null,null,null,null,null,null," "]
[null,null,null,null,null,null,null,null," "]
[null,null,null,null,null,null,null,null," "]
[null,null,null,null,null,null,null,null," "]
[null,null,null,null,null,null,null,null," "]
[null,null,null,null,null,null,null,null,{"$f":"IF(G714=\"Pfizer-BioNTech\",\"Pfizer-BioNTech\",IF(G714=\"Moderna\",\"Moderna\", IF(G714=\"Janssen\",\"\",\" \")))","v":" "}]
[null,null,null,null,null,null,null,null," "]
[null,null,null,null,null,null,null,null," "]
[null,null,null,null,null,null,null,null," "]
[null,null,null,null,null,null,null,null," "]
[null,null,null,null,null,null,null,null," "]
[null,null,null,null,null,null,null,null," "]
[null,null,null,null,null,null,null,null," "]
[null,null,null,null,null,null,null,null," "]
[null,null,null,null,null,null,null,null," "]
[null,null,null,null,null,null,null,null," "]
[null,null,null,null,null,null,null,null," "]
[null,null,null,null,null,null,null,null," "]
[null,null,null,null,null,null,null,null," "]
[null,null,null,null,null,null,null,null," "]
[null,null,null,null,null,null,null,null," "]
[null,null,null,null,null,null,null,null," "]
[null,null,null,null,null,null,null,null," "]
[null,null,null,null,null,null,null,null," "]
[null,null,null,null,null,null,null,null," "]
[null,null,null,null,null,null,null,null," "]
[null,null,null,null,null,null,null,null," "]
[null,null,null,null,null,null,null,null," "]
[null,null,null,null,null,null,null,null," "]
[null,null,null,null,null,null,null,null," "]
[null,null,null,null,null,null,null,null," "]
[null,null,null,null,null,null,null,null," "]
[null,null,null,null,null,null,null,null," "]
[null,null,null,null,null,null,null,null," "]
[null,null,null,null,null,null,null,null," "]
[null,null,null,null,null,null,null,null," "]
[null,null,null,null,null,null,null,null," "]
[null,null,null,null,null,null,null,null," "]
[null,null,null,null,null,null,null,null," "]
[null,null,null,null,null,null,null,null," "]
[null,null,null,null,null,null,null,null," "]
[null,null,null,null,null,null,null,null," "]
[null,null,null,null,null,null,null,null," "]
[null,null,null,null,null,null,null,null," "]
[null,null,null,null,null,null,null,null," "]
[null,null,null,null,null,null,null,null," "]
[null,null,null,null,null,null,null,null," "]
[null,null,null,null,null,null,null,null," "]
[null,null,null,null,null,null,null,null," "]
[null,null,null,null,null,null,null,null," "]
[null,null,null,null,null,null,null,null," "]
[null,null,null,null,null,null,null,null," "]
[null,null,null,null,null,null,null,null," "]
[null,null,null,null,null,null,null,null," "]
[null,null,null,null,null,null,null,null," "]
[null,null,null,null,null,null,null,null," "]
[null,null,null,null,null,null,null,null," "]
[null,null,null,null,null,null,null,null," "]
[null,null,null,null,null,null,null,null," "]
[null,null,null,null,null,null,null,null," "]
[null,null,null,null,null,null,null,null," "]
[null,null,null,null,null,null,null,null," "]
[null,null,null,null,null,null,null,null," "]
[null,null,null,null,null,null,null,null," "]
[null,null,null,null,null,null,null,null," "]
[null,null,null,null,null,null,null,null," "]
[null,null,null,null,null,null,null,null," "]
[null,null,null,null,null,null,null,null," "]
[null,null,null,null,null,null,null,null," "]
[null,null,null,null,null,null,null,null,{"$f":"IF(G778=\"Pfizer-BioNTech\",\"Pfizer-BioNTech\",IF(G778=\"Moderna\",\"Moderna\", IF(G778=\"Janssen\",\"\",\" \")))","v":" "}]
[null,null,null,null,null,null,null,null," "]
[null,null,null,null,null,null,null,null," "]
[null,null,null,null,null,null,null,null," "]
[null,null,null,null,null,null,null,null," "]
[null,null,null,null,null,null,null,null," "]
[null,null,null,null,null,null,null,null," "]
[null,null,null,null,null,null,null,null," "]
[null,null,null,null,null,null,null,null," "]
[null,null,null,null,null,null,null,null," "]
[null,null,null,null,null,null,null,null," "]
[null,null,null,null,null,null,null,null," "]
[null,null,null,null,null,null,null,null," "]
[null,null,null,null,null,null,null,null," "]
[null,null,null,null,null,null,null,null," "]
[null,null,null,null,null,null,null,null," "]
[null,null,null,null,null,null,null,null," "]
[null,null,null,null,null,null,null,null," "]
[null,null,null,null,null,null,null,null," "]
[null,null,null,null,null,null,null,null," "]
[null,null,null,null,null,null,null,null," "]
[null,null,null,null,null,null,null,null," "]
[null,null,null,null,null,null,null,null," "]
[null,null,null,null,null,null,null,null," "]
[null,null,null,null,null,null,null,null," "]
[null,null,null,null,null,null,null,null," "]
[null,null,null,null,null,null,null,null," "]
[null,null,null,null,null,null,null,null," "]
[null,null,null,null,null,null,null,null," "]
[null,null,null,null,null,null,null,null," "]
[null,null,null,null,null,null,null,null," "]
[null,null,null,null,null,null,null,null," "]
[null,null,null,null,null,null,null,null," "]
[null,null,null,null,null,null,null,null," "]
[null,null,null,null,null,null,null,null," "]
[null,null,null,null,null,null,null,null," "]
[null,null,null,null,null,null,null,null," "]
[null,null,null,null,null,null,null,null," "]
[null,null,null,null,null,null,null,null," "]
[null,null,null,null,null,null,null,null," "]
[null,null,null,null,null,null,null,null," "]
[null,null,null,null,null,null,null,null," "]
[null,null,null,null,null,null,null,null," "]
[null,null,null,null,null,null,null,null," "]
[null,null,null,null,null,null,null,null," "]
[null,null,null,null,null,null,null,null," "]
[null,null,null,null,null,null,null,null," "]
[null,null,null,null,null,null,null,null," "]
[null,null,null,null,null,null,null,null," "]
[null,null,null,null,null,null,null,null," "]
[null,null,null,null,null,null,null,null," "]
[null,null,null,null,null,null,null,null," "]
[null,null,null,null,null,null,null,null," "]
[null,null,null,null,null,null,null,null," "]
[null,null,null,null,null,null,null,null," "]
[null,null,null,null,null,null,null,null," "]
[null,null,null,null,null,null,null,null," "]
[null,null,null,null,null,null,null,null," "]
[null,null,null,null,null,null,null,null," "]
[null,null,null,null,null,null,null,null," "]
[null,null,null,null,null,null,null,null," "]
[null,null,null,null,null,null,null,null," "]
[null,null,null,null,null,null,null,null," "]
[null,null,null,null,null,null,null,null," "]
[null,null,null,null,null,null,null,null,{"$f":"IF(G842=\"Pfizer-BioNTech\",\"Pfizer-BioNTech\",IF(G842=\"Moderna\",\"Moderna\", IF(G842=\"Janssen\",\"\",\" \")))","v":" "}]
[null,null,null,null,null,null,null,null," "]
[null,null,null,null,null,null,null,null," "]
[null,null,null,null,null,null,null,null," "]
[null,null,null,null,null,null,null,null," "]
[null,null,null,null,null,null,null,null," "]
[null,null,null,null,null,null,null,null," "]
[null,null,null,null,null,null,null,null," "]
[null,null,null,null,null,null,null,null," "]
[null,null,null,null,null,null,null,null," "]
[null,null,null,null,null,null,null,null," "]
[null,null,null,null,null,null,null,null," "]
[null,null,null,null,null,null,null,null," "]
[null,null,null,null,null,null,null,null," "]
[null,null,null,null,null,null,null,null," "]
[null,null,null,null,null,null,null,null," "]
[null,null,null,null,null,null,null,null," "]
[null,null,null,null,null,null,null,null," "]
[null,null,null,null,null,null,null,null," "]
[null,null,null,null,null,null,null,null," "]
[null,null,null,null,null,null,null,null," "]
[null,null,null,null,null,null,null,null," "]
[null,null,null,null,null,null,null,null," "]
[null,null,null,null,null,null,null,null," "]
[null,null,null,null,null,null,null,null," "]
[null,null,null,null,null,null,null,null," "]
[null,null,null,null,null,null,null,null," "]
[null,null,null,null,null,null,null,null," "]
[null,null,null,null,null,null,null,null," "]
[null,null,null,null,null,null,null,null," "]
[null,null,null,null,null,null,null,null," "]
[null,null,null,null,null,null,null,null," "]
[null,null,null,null,null,null,null,null," "]
[null,null,null,null,null,null,null,null," "]
[null,null,null,null,null,null,null,null," "]
[null,null,null,null,null,null,null,null," "]
[null,null,null,null,null,null,null,null," "]
[null,null,null,null,null,null,null,null," "]
[null,null,null,null,null,null,null,null," "]
[null,null,null,null,null,null,null,null," "]
[null,null,null,null,null,null,null,null," "]
[null,null,null,null,null,null,null,null," "]
[null,null,null,null,null,null,null,null," "]
[null,null,null,null,null,null,null,null," "]
[null,null,null,null,null,null,null,null," "]
[null,null,null,null,null,null,null,null," "]
[null,null,null,null,null,null,null,null," "]
[null,null,null,null,null,null,null,null," "]
[null,null,null,null,null,null,null,null," "]
[null,null,null,null,null,null,null,null," "]
[null,null,null,null,null,null,null,null," "]
[null,null,null,null,null,null,null,null," "]
[null,null,null,null,null,null,null,null," "]
[null,null,null,null,null,null,null,null," "]
[null,null,null,null,null,null,null,null," "]
[null,null,null,null,null,null,null,null," "]
[null,null,null,null,null,null,null,null," "]
[null,null,null,null,null,null,null,null," "]
[null,null,null,null,null,null,null,null," "]
[null,null,null,null,null,null,null,null," "]
[null,null,null,null,null,null,null,null," "]
[null,null,null,null,null,null,null,null," "]
[null,null,null,null,null,null,null,null," "]
[null,null,null,null,null,null,null,null," "]
[null,null,null,null,null,null,null,null,{"$f":"IF(G906=\"Pfizer-BioNTech\",\"Pfizer-BioNTech\",IF(G906=\"Moderna\",\"Moderna\", IF(G906=\"Janssen\",\"\",\" \")))","v":" "}]
[null,null,null,null,null,null,null,null," "]
[null,null,null,null,null,null,null,null," "]
[null,null,null,null,null,null,null,null," "]
[null,null,null,null,null,null,null,null," "]
[null,null,null,null,null,null,null,null," "]
[null,null,null,null,null,null,null,null," "]
[null,null,null,null,null,null,null,null," "]
[null,null,null,null,null,null,null,null," "]
[null,null,null,null,null,null,null,null," "]
[null,null,null,null,null,null,null,null," "]
[null,null,null,null,null,null,null,null," "]
[null,null,null,null,null,null,null,null," "]
[null,null,null,null,null,null,null,null," "]
[null,null,null,null,null,null,null,null," "]
[null,null,null,null,null,null,null,null," "]
[null,null,null,null,null,null,null,null," "]
[null,null,null,null,null,null,null,null," "]
[null,null,null,null,null,null,null,null," "]
[null,null,null,null,null,null,null,null," "]
[null,null,null,null,null,null,null,null," "]
[null,null,null,null,null,null,null,null," "]
[null,null,null,null,null,null,null,null," "]
[null,null,null,null,null,null,null,null," "]
[null,null,null,null,null,null,null,null," "]
[null,null,null,null,null,null,null,null," "]
[null,null,null,null,null,null,null,null," "]
[null,null,null,null,null,null,null,null," "]
[null,null,null,null,null,null,null,null," "]
[null,null,null,null,null,null,null,null," "]
[null,null,null,null,null,null,null,null," "]
[null,null,null,null,null,null,null,null," "]
[null,null,null,null,null,null,null,null," "]
[null,null,null,null,null,null,null,null," "]
[null,null,null,null,null,null,null,null," "]
[null,null,null,null,null,null,null,null," "]
[null,null,null,null,null,null,null,null," "]
[null,null,null,null,null,null,null,null," "]
[null,null,null,null,null,null,null,null," "]
[null,null,null,null,null,null,null,null," "]
[null,null,null,null,null,null,null,null," "]
[null,null,null,null,null,null,null,null," "]
[null,null,null,null,null,null,null,null," "]
[null,null,null,null,null,null,null,null," "]
[null,null,null,null,null,null,null,null," "]
[null,null,null,null,null,null,null,null," "]
[null,null,null,null,null,null,null,null," "]
[null,null,null,null,null,null,null,null," "]
[null,null,null,null,null,null,null,null," "]
[null,null,null,null,null,null,null,null," "]
[null,null,null,null,null,null,null,null," "]
[null,null,null,null,null,null,null,null," "]
[null,null,null,null,null,null,null,null," "]
[null,null,null,null,null,null,null,null," "]
[null,null,null,null,null,null,null,null," "]
[null,null,null,null,null,null,null,null," "]
[null,null,null,null,null,null,null,null," "]
[null,null,null,null,null,null,null,null," "]
[null,null,null,null,null,null,null,null," "]
[null,null,null,null,null,null,null,null," "]
[null,null,null,null,null,null,null,null," "]
[null,null,null,null,null,null,null,null," "]
[null,null,null,null,null,null,null,null," "]
[null,null,null,null,null,null,null,null," "]
[null,null,null,null,null,null,null,null,{"$f":"IF(G970=\"Pfizer-BioNTech\",\"Pfizer-BioNTech\",IF(G970=\"Moderna\",\"Moderna\", IF(G970=\"Janssen\",\"\",\" \")))","v":" "}]
[null,null,null,null,null,null,null,null," "]
[null,null,null,null,null,null,null,null," "]
[null,null,null,null,null,null,null,null," "]
[null,null,null,null,null,null,null,null," "]
[null,null,null,null,null,null,null,null," "]
[null,null,null,null,null,null,null,null," "]
[null,null,null,null,null,null,null,null," "]
[null,null,null,null,null,null,null,null," "]
[null,null,null,null,null,null,null,null," "]
[null,null,null,null,null,null,null,null," "]
[null,null,null,null,null,null,null,null," "]
[null,null,null,null,null,null,null,null," "]
[null,null,null,null,null,null,null,null," "]
[null,null,null,null,null,null,null,null," "]
[null,null,null,null,null,null,null,null," "]
[null,null,null,null,null,null,null,null," "]
[null,null,null,null,null,null,null,null," "]
[null,null,null,null,null,null,null,null," "]
[null,null,null,null,null,null,null,null," "]
[null,null,null,null,null,null,null,null," "]
[null,null,null,null,null,null,null,null," "]
[null,null,null,null,null,null,null,null," "]
[null,null,null,null,null,null,null,null," "]
[null,null,null,null,null,null,null,null," "]
[null,null,null,null,null,null,null,null," "]
[null,null,null,null,null,null,null,null," "]
[null,null,null,null,null,null,null,null," "]
[null,null,null,null,null,null,null,null," "]
[null,null,null,null,null,null,null,null," "]
[null,null,null,null,null,null,null,null," "]
[null,null,null,null,null,null,null,null," "]
[null,null,null,null,null,null,null,null," "]
[null,null,null,null,null,null,null,null," "]
[null,null,null,null,null,null,null,null," "]
[null,null,null,null,null,null,null,null," "]
[null,null,null,null,null,null,null,null," "]
[null,null,null,null,null,null,null,null," "]

{"sheet":"Vaccination Summary","index":2,"n_rows":28,"n_cols":9,"rows_kept":28,"cut":false,"hidden":false,"merged":[[19,1,19,2],[23,1,23,2],[9,3,9,8],[1,1,1,2],[2,1,2,2],[9,1,9,2],[12,1,12,2]]}
[]
[null,"Weekly COVID-19 Vaccination Cumulative Summary for \nHCP of Long-Term Care Facilities"]
[null,"TRACKING WORKSHEET"]
[]
[null,"Facility ID#:",{"$f":"'Tracking Worksheet'!J2","v":0}]
[null,"Vaccination type: COVID-19 ",{"$f":"'Tracking Worksheet'!J3","v":"COVID_19"}]
[null,"Week of data collection first day (Monday): ",{"$f":"'Tracking Worksheet'!J4","v":"2021-05-24"}]
[null,"Week of data collection last day (Sunday): ",{"$f":"'Tracking Worksheet'!J5","v":"2021-05-30"}]
[null,"Date Last Modified:",{"$f":"TODAY()","v":"2021-06-02"}]
[null,"Cumulative Vaccination Coverage",null,"Healthcare Personnel (HCP) Categories"]
[null,null,"All HCP",{"$f":"[2]HCP_List!C4","v":"Ancillary Services"},{"$f":"[2]HCP_List!C5","v":"Nurse"},{"$f":"[2]HCP_List!C6","v":"Aid, Assistant, or Technician"},{"$f":"[2]HCP_List!C7","v":"Therapist"},{"$f":"[2]HCP_List!C8","v":"Physician or Licensed Independent Practioner"},{"$f":"[2]HCP_List!C9","v":"Other HCP"}]
[null,"1. *Number of HCP that were eligible to have worked at this healthcare \n       facility for at least 1 day during the week of data collection",{"$f":"'Tracking Worksheet'!T8","v":0},{"$f":"'Tracking Worksheet'!U8","v":0},{"$f":"'Tracking Worksheet'!V8","v":0},{"$f":"'Tracking Worksheet'!W8","v":0},{"$f":"'Tracking Worksheet'!X8","v":0},{"$f":"'Tracking Worksheet'!Y8","v":0},{"$f":"'Tracking Worksheet'!Z8","v":0}]
[null,"2. *Cumulative number of HCP in Question #1 who have received COVID-19 vaccine(s) at \n       this facility or elsewhere:   "]
[null,"2.1. Only dose 1 of Pfizer-BioNTech COVID-19 vaccine ",{"$f":"'Tracking Worksheet'!T9","v":0},{"$f":"'Tracking Worksheet'!U9","v":0},{"$f":"'Tracking Worksheet'!V9","v":0},{"$f":"'Tracking Worksheet'!W9","v":0},{"$f":"'Tracking Worksheet'!X9","v":0},{"$f":"'Tracking Worksheet'!Y9","v":0},{"$f":"'Tracking Worksheet'!Z9","v":0}]
[null,"2.2. Dose 1 and dose 2 of Pfizer-BioNTech COVID-19 vaccine",{"$f":"'Tracking Worksheet'!T10","v":0},{"$f":"'Tracking Worksheet'!U10","v":0},{"$f":"'Tracking Worksheet'!V10","v":0},{"$f":"'Tracking Worksheet'!W10","v":0},{"$f":"'Tracking Worksheet'!X10","v":0},{"$f":"'Tracking Worksheet'!Y10","v":0},{"$f":"'Tracking Worksheet'!Z10","v":0}]
[null,"2.3. Only dose 1 of Moderna COVID-19 vaccine ",{"$f":"'Tracking Worksheet'!T11","v":0},{"$f":"'Tracking Worksheet'!U11","v":0},{"$f":"'Tracking Worksheet'!V11","v":0},{"$f":"'Tracking Worksheet'!W11","v":0},{"$f":"'Tracking Worksheet'!X11","v":0},{"$f":"'Tracking Worksheet'!Y11","v":0},{"$f":"'Tracking Worksheet'!Z11","v":0}]
[null,"2.4. Dose 1 and dose 2 of Moderna COVID-19 vaccine",{"$f":"'Tracking Worksheet'!T12","v":0},{"$f":"'Tracking Worksheet'!U12","v":0},{"$f":"'Tracking Worksheet'!V12","v":0},{"$f":"'Tracking Worksheet'!W12","v":0},{"$f":"'Tracking Worksheet'!X12","v":0},{"$f":"'Tracking Worksheet'!Y12","v":0},{"$f":"'Tracking Worksheet'!Z12","v":0}]
[null,"2.5. Dose of Janssen COVID-19 vaccine",{"$f":"'Tracking Worksheet'!T13","v":0},{"$f":"'Tracking Worksheet'!U13","v":0},{"$f":"'Tracking Worksheet'!V13","v":0},{"$f":"'Tracking Worksheet'!W13","v":0},{"$f":"'Tracking Worksheet'!X13","v":0},{"$f":"'Tracking Worksheet'!Y13","v":0},{"$f":"'Tracking Worksheet'!Z13","v":0}]
[null,"2.99. Complete COVID-19 vaccination series: unspecified manufacturer",{"$f":"'Tracking Worksheet'!T14","v":0},{"$f":"'Tracking Worksheet'!U14","v":0},{"$f":"'Tracking Worksheet'!V14","v":0},{"$f":"'Tracking Worksheet'!W14","v":0},{"$f":"'Tracking Worksheet'!X14","v":0},{"$f":"'Tracking Worksheet'!Y14","v":0},{"$f":"'Tracking Worksheet'!Z14","v":0}]
[null,"3. Cumulative number of residents in Question #1 with other conditions:"]
[null,"3.1. Medical contraindication to COVID-19 vaccine",{"$f":"'Tracking Worksheet'!T16","v":0},{"$f":"'Tracking Worksheet'!U16","v":0},{"$f":"'Tracking Worksheet'!V16","v":0},{"$f":"'Tracking Worksheet'!W16","v":0},{"$f":"'Tracking Worksheet'!X16","v":0},{"$f":"'Tracking Worksheet'!Y16","v":0},{"$f":"'Tracking Worksheet'!Z16","v":0}]
[null,"3.2. Offered but declined COVID-19 vaccine",{"$f":"'Tracking Worksheet'!T17","v":0},{"$f":"'Tracking Worksheet'!U17","v":0},{"$f":"'Tracking Worksheet'!V17","v":0},{"$f":"'Tracking Worksheet'!W17","v":0},{"$f":"'Tracking Worksheet'!X17","v":0},{"$f":"'Tracking Worksheet'!Y17","v":0},{"$f":"'Tracking Worksheet'!Z17","v":0}]
[null,"3.3. Unknown COVID-19 vaccination status",{"$f":"'Tracking Worksheet'!T18","v":0},{"$f":"'Tracking Worksheet'!U18","v":0},{"$f":"'Tracking Worksheet'!V18","v":0},{"$f":"'Tracking Worksheet'!W18","v":0},{"$f":"'Tracking Worksheet'!X18","v":0},{"$f":"'Tracking Worksheet'!Y18","v":0},{"$f":"'Tracking Worksheet'!Z18","v":0}]
[null,"COVID-19 Vaccine(s) Supply"]
[null,"4.1. Is your facility enrolled as a COVID-19 vaccination provider?"]
[null,"4.2. Did your facility have a sufficient supply of COVID-19 vaccine(s) to \n        offer all HCP the opportunity to receive COVID-19 vaccine(s) \n        from your facility in the current reporting week?"]
[null,"4.3. Did your facility have other arrangements sufficient to offer all \n        HCP the opportunity to receive COVID-19 vaccine(s) in the \n        current reporting week (examples of other arrangements include \n        referring to the health department or pharmacies for vaccination)?"]
[null,"4.4. Please describe any other COVID-19 vaccination supply-related \n        issue(s) at your facility. \n        [Optional]"]